Department family,Entity,Date,Expense type,Expense area,Supplier,Transaction number,Amount
Department of Health,Leicestershire Partnership NHS Trust,01/06/23,Healthcare Services / Recharges from Non-NHS Bodies,Adult Eating Disorder Collaborative,PRIORY GROUP,301MAY23LEC,84778.95
Department of Health,Leicestershire Partnership NHS Trust,02/06/23,Unitary Payment,"The Agnes Unit (AKA Assessment and Treatment Centre) (P85, LPT)",ARDEN PARTNERSHIP (LEICESTER),SI0126,149181.91
Department of Health,Leicestershire Partnership NHS Trust,02/06/23,Nurse - Band 6 -Agency,AMH - Central Access Point,HCL NURSING,HNSI0001361,2021.14
Department of Health,Leicestershire Partnership NHS Trust,02/06/23,NURSE - BAND 2 - AGENCY,Agnes Unit,HCL NURSING,HNSI0001361,20840.15
Department of Health,Leicestershire Partnership NHS Trust,02/06/23,NURSE - BAND 5 - AGENCY,Agnes Unit,HCL NURSING,HNSI0001361,22536.43
Department of Health,Leicestershire Partnership NHS Trust,02/06/23,Nurse - Band 7 - Agency,Agnes Unit,HCL NURSING,HNSI0001361,2390.45
Department of Health,Leicestershire Partnership NHS Trust,02/06/23,NURSE - BAND 2 - AGENCY,Ashby Ward (Bradgate Unit),HCL NURSING,HNSI0001361,5491.28
Department of Health,Leicestershire Partnership NHS Trust,02/06/23,NURSE - BAND 5 - AGENCY,Ashby Ward (Bradgate Unit),HCL NURSING,HNSI0001361,9674.82
Department of Health,Leicestershire Partnership NHS Trust,02/06/23,NURSE - BAND 2 - AGENCY,Aston Ward Bradgate Unit (Prev Welford),HCL NURSING,HNSI0001361,1254.05
Department of Health,Leicestershire Partnership NHS Trust,02/06/23,NURSE - BAND 5 - AGENCY,Aston Ward Bradgate Unit (Prev Welford),HCL NURSING,HNSI0001361,2497.35
Department of Health,Leicestershire Partnership NHS Trust,02/06/23,NURSE - BAND 2 - AGENCY,Beaumont Ward - Bradgate Unit,HCL NURSING,HNSI0001361,2349.35
Department of Health,Leicestershire Partnership NHS Trust,02/06/23,NURSE - BAND 5 - AGENCY,Beaumont Ward - Bradgate Unit,HCL NURSING,HNSI0001361,9749.98
Department of Health,Leicestershire Partnership NHS Trust,02/06/23,NURSE - BAND 2 - AGENCY,Belvoir Psychiatric Intensive Care Unit,HCL NURSING,HNSI0001361,4672.08
Department of Health,Leicestershire Partnership NHS Trust,02/06/23,NURSE - BAND 5 - AGENCY,Belvoir Psychiatric Intensive Care Unit,HCL NURSING,HNSI0001361,4806.85
Department of Health,Leicestershire Partnership NHS Trust,02/06/23,NURSE - BAND 5 - AGENCY,Bosworth Ward - Bradgate Unit,HCL NURSING,HNSI0001361,2819.58
Department of Health,Leicestershire Partnership NHS Trust,02/06/23,NURSE - BAND 2 - AGENCY,Cedar (Willows),HCL NURSING,HNSI0001361,252.81
Department of Health,Leicestershire Partnership NHS Trust,02/06/23,NURSE - BAND 5 - AGENCY,Cedar (Willows),HCL NURSING,HNSI0001361,493.45
Department of Health,Leicestershire Partnership NHS Trust,02/06/23,NURSE - BAND 2 - AGENCY,Coleman Ward,HCL NURSING,HNSI0001361,2006.91
Department of Health,Leicestershire Partnership NHS Trust,02/06/23,NURSE - BAND 5 - AGENCY,Coleman Ward,HCL NURSING,HNSI0001361,2615.14
Department of Health,Leicestershire Partnership NHS Trust,02/06/23,NURSE - BAND 5 - AGENCY,Crisis Resolution,HCL NURSING,HNSI0001361,827.89
Department of Health,Leicestershire Partnership NHS Trust,02/06/23,NURSE - BAND 2 - AGENCY,Griffin Ward (HPC),HCL NURSING,HNSI0001361,7727.24
Department of Health,Leicestershire Partnership NHS Trust,02/06/23,NURSE - BAND 5 - AGENCY,Griffin Ward (HPC),HCL NURSING,HNSI0001361,4246.94
Department of Health,Leicestershire Partnership NHS Trust,02/06/23,NURSE - BAND 2 - AGENCY,Gwendolen Ward,HCL NURSING,HNSI0001361,1747.77
Department of Health,Leicestershire Partnership NHS Trust,02/06/23,NURSE - BAND 5 - AGENCY,Gwendolen Ward,HCL NURSING,HNSI0001361,1822.83
Department of Health,Leicestershire Partnership NHS Trust,02/06/23,NURSE - BAND 2 - AGENCY,Heather Ward,HCL NURSING,HNSI0001361,3349.46
Department of Health,Leicestershire Partnership NHS Trust,02/06/23,NURSE - BAND 5 - AGENCY,Heather Ward,HCL NURSING,HNSI0001361,967.42
Department of Health,Leicestershire Partnership NHS Trust,02/06/23,NURSE - BAND 2 - AGENCY,Kirby Ward,HCL NURSING,HNSI0001361,4896.51
Department of Health,Leicestershire Partnership NHS Trust,02/06/23,NURSE - BAND 5 - AGENCY,Kirby Ward,HCL NURSING,HNSI0001361,1931.06
Department of Health,Leicestershire Partnership NHS Trust,02/06/23,NURSE - BAND 5 - AGENCY,Maple Ward,HCL NURSING,HNSI0001361,437.47
Department of Health,Leicestershire Partnership NHS Trust,02/06/23,NURSE - BAND 2 - AGENCY,Mill Lodge,HCL NURSING,HNSI0001361,1605.44
Department of Health,Leicestershire Partnership NHS Trust,02/06/23,NURSE - BAND 5 - AGENCY,Mill Lodge,HCL NURSING,HNSI0001361,2372.64
Department of Health,Leicestershire Partnership NHS Trust,02/06/23,NURSE - BAND 2 - AGENCY,Phoenix Ward (HPC),HCL NURSING,HNSI0001361,1069.43
Department of Health,Leicestershire Partnership NHS Trust,02/06/23,NURSE - BAND 5 - AGENCY,Phoenix Ward (HPC),HCL NURSING,HNSI0001361,1436.38
Department of Health,Leicestershire Partnership NHS Trust,02/06/23,NURSE - BAND 2 - AGENCY,Place Of Safety Assessment Unit,HCL NURSING,HNSI0001361,704.42
Department of Health,Leicestershire Partnership NHS Trust,02/06/23,NURSE - BAND 5 - AGENCY,Place Of Safety Assessment Unit,HCL NURSING,HNSI0001361,4018.93
Department of Health,Leicestershire Partnership NHS Trust,02/06/23,NURSE - BAND 5 - AGENCY,Stewart House,HCL NURSING,HNSI0001361,437.47
Department of Health,Leicestershire Partnership NHS Trust,02/06/23,NURSE - BAND 2 - AGENCY,Sycamore (Willows),HCL NURSING,HNSI0001361,457.35
Department of Health,Leicestershire Partnership NHS Trust,02/06/23,NURSE - BAND 5 - AGENCY,Sycamore (Willows),HCL NURSING,HNSI0001361,1065.34
Department of Health,Leicestershire Partnership NHS Trust,02/06/23,NURSE - BAND 2 - AGENCY,Thornton Ward - Bradgate Unit,HCL NURSING,HNSI0001361,3184.68
Department of Health,Leicestershire Partnership NHS Trust,02/06/23,NURSE - BAND 5 - AGENCY,Thornton Ward - Bradgate Unit,HCL NURSING,HNSI0001361,3133.87
Department of Health,Leicestershire Partnership NHS Trust,02/06/23,Nurse - Band 6 -Agency,CAMHS Waiting List Monies,HCL WORKFORCE SOLUTIONS,HWSI0001757,12642.66
Department of Health,Leicestershire Partnership NHS Trust,02/06/23,Nurse - Band 6 -Agency,Crisis Response and Home Treatment,HCL WORKFORCE SOLUTIONS,HWSI0001757,8817.68
Department of Health,Leicestershire Partnership NHS Trust,02/06/23,NURSE - BAND 2 - AGENCY,CAMHS ED Team,HCL NURSING,HNSI0001363,3345.04
Department of Health,Leicestershire Partnership NHS Trust,02/06/23,NURSE - BAND 2 - AGENCY,CAMHS Inpatient Service,HCL NURSING,HNSI0001363,20165.09
Department of Health,Leicestershire Partnership NHS Trust,02/06/23,NURSE - BAND 5 - AGENCY,CAMHS Inpatient Service,HCL NURSING,HNSI0001363,5739.65
Department of Health,Leicestershire Partnership NHS Trust,02/06/23,NURSE - BAND 2 - AGENCY,CAMHS Learning Disabilities and Outreach Team,HCL NURSING,HNSI0001363,1828.76
Department of Health,Leicestershire Partnership NHS Trust,02/06/23,Nurse - Band 7 - Agency,CAMHS Waiting List Monies,HCL NURSING,HNSI0001363,5199.78
Department of Health,Leicestershire Partnership NHS Trust,02/06/23,NURSE - BAND 2 - AGENCY,Welford Ward (Prev Langley),HCL NURSING,HNSI0001363,210.19
Department of Health,Leicestershire Partnership NHS Trust,02/06/23,NURSE - BAND 5 - AGENCY,Welford Ward (Prev Langley),HCL NURSING,HNSI0001363,1874.58
Department of Health,Leicestershire Partnership NHS Trust,02/06/23,Payroll Deductions -Salary Sacrifice Cars Scheme,Balance Sheet Collection,TUSKER,76035,44649.60
Department of Health,Leicestershire Partnership NHS Trust,02/06/23,Services / Recharges from NHS Trusts,Inter Unit I & E Distribution,UHL NHS TRUST (RWE),L0271355,93376.76
Department of Health,Leicestershire Partnership NHS Trust,05/06/23,Nurse - Band 6 -Agency,AMH - Central Access Point,HCL NURSING,HNSI0001365,2844.95
Department of Health,Leicestershire Partnership NHS Trust,05/06/23,NURSE - BAND 2 - AGENCY,Agnes Unit,HCL NURSING,HNSI0001365,22796.12
Department of Health,Leicestershire Partnership NHS Trust,05/06/23,NURSE - BAND 5 - AGENCY,Agnes Unit,HCL NURSING,HNSI0001365,17719.11
Department of Health,Leicestershire Partnership NHS Trust,05/06/23,Nurse - Band 7 - Agency,Agnes Unit,HCL NURSING,HNSI0001365,1877.88
Department of Health,Leicestershire Partnership NHS Trust,05/06/23,NURSE - BAND 2 - AGENCY,Ashby Ward (Bradgate Unit),HCL NURSING,HNSI0001365,3300.50
Department of Health,Leicestershire Partnership NHS Trust,05/06/23,NURSE - BAND 5 - AGENCY,Ashby Ward (Bradgate Unit),HCL NURSING,HNSI0001365,8304.32
Department of Health,Leicestershire Partnership NHS Trust,05/06/23,NURSE - BAND 2 - AGENCY,Aston Ward Bradgate Unit (Prev Welford),HCL NURSING,HNSI0001365,1054.25
Department of Health,Leicestershire Partnership NHS Trust,05/06/23,NURSE - BAND 5 - AGENCY,Aston Ward Bradgate Unit (Prev Welford),HCL NURSING,HNSI0001365,826.97
Department of Health,Leicestershire Partnership NHS Trust,05/06/23,NURSE - BAND 2 - AGENCY,Beaumont Ward - Bradgate Unit,HCL NURSING,HNSI0001365,1647.01
Department of Health,Leicestershire Partnership NHS Trust,05/06/23,NURSE - BAND 5 - AGENCY,Beaumont Ward - Bradgate Unit,HCL NURSING,HNSI0001365,6881.46
Department of Health,Leicestershire Partnership NHS Trust,05/06/23,NURSE - BAND 2 - AGENCY,Belvoir Psychiatric Intensive Care Unit,HCL NURSING,HNSI0001365,12139.19
Department of Health,Leicestershire Partnership NHS Trust,05/06/23,NURSE - BAND 5 - AGENCY,Belvoir Psychiatric Intensive Care Unit,HCL NURSING,HNSI0001365,4866.89
Department of Health,Leicestershire Partnership NHS Trust,05/06/23,NURSE - BAND 2 - AGENCY,Bosworth Ward - Bradgate Unit,HCL NURSING,HNSI0001365,977.87
Department of Health,Leicestershire Partnership NHS Trust,05/06/23,NURSE - BAND 5 - AGENCY,Bosworth Ward - Bradgate Unit,HCL NURSING,HNSI0001365,2633.19
Department of Health,Leicestershire Partnership NHS Trust,05/06/23,Nurse - Band 6 -Agency,City West CMHT MHSOP,HCL NURSING,HNSI0001365,1046.25
Department of Health,Leicestershire Partnership NHS Trust,05/06/23,NURSE - BAND 2 - AGENCY,Coleman Ward,HCL NURSING,HNSI0001365,5198.73
Department of Health,Leicestershire Partnership NHS Trust,05/06/23,NURSE - BAND 5 - AGENCY,Coleman Ward,HCL NURSING,HNSI0001365,1879.63
Department of Health,Leicestershire Partnership NHS Trust,05/06/23,NURSE - BAND 5 - AGENCY,Crisis Resolution,HCL NURSING,HNSI0001365,643.04
Department of Health,Leicestershire Partnership NHS Trust,05/06/23,NURSE - BAND 2 - AGENCY,Griffin Ward (HPC),HCL NURSING,HNSI0001365,4221.80
Department of Health,Leicestershire Partnership NHS Trust,05/06/23,NURSE - BAND 5 - AGENCY,Griffin Ward (HPC),HCL NURSING,HNSI0001365,1991.50
Department of Health,Leicestershire Partnership NHS Trust,05/06/23,NURSE - BAND 2 - AGENCY,Gwendolen Ward,HCL NURSING,HNSI0001365,5060.90
Department of Health,Leicestershire Partnership NHS Trust,05/06/23,NURSE - BAND 5 - AGENCY,Gwendolen Ward,HCL NURSING,HNSI0001365,2399.08
Department of Health,Leicestershire Partnership NHS Trust,05/06/23,NURSE - BAND 2 - AGENCY,Heather Ward,HCL NURSING,HNSI0001365,2724.22
Department of Health,Leicestershire Partnership NHS Trust,05/06/23,NURSE - BAND 5 - AGENCY,Heather Ward,HCL NURSING,HNSI0001365,2988.05
Department of Health,Leicestershire Partnership NHS Trust,05/06/23,NURSE - BAND 2 - AGENCY,Kirby Ward,HCL NURSING,HNSI0001365,4640.55
Department of Health,Leicestershire Partnership NHS Trust,05/06/23,NURSE - BAND 5 - AGENCY,Kirby Ward,HCL NURSING,HNSI0001365,2429.70
Department of Health,Leicestershire Partnership NHS Trust,05/06/23,NURSE - BAND 2 - AGENCY,Maple Ward,HCL NURSING,HNSI0001365,204.54
Department of Health,Leicestershire Partnership NHS Trust,05/06/23,Nurse - Band 6 -Agency,Mental Health Liaison Team,HCL NURSING,HNSI0001365,408.15
Department of Health,Leicestershire Partnership NHS Trust,05/06/23,NURSE - BAND 2 - AGENCY,Mill Lodge,HCL NURSING,HNSI0001365,1958.02
Department of Health,Leicestershire Partnership NHS Trust,05/06/23,NURSE - BAND 5 - AGENCY,Mill Lodge,HCL NURSING,HNSI0001365,1508.82
Department of Health,Leicestershire Partnership NHS Trust,05/06/23,NURSE - BAND 2 - AGENCY,Phoenix Ward (HPC),HCL NURSING,HNSI0001365,1652.08
Department of Health,Leicestershire Partnership NHS Trust,05/06/23,NURSE - BAND 5 - AGENCY,Phoenix Ward (HPC),HCL NURSING,HNSI0001365,3099.45
Department of Health,Leicestershire Partnership NHS Trust,05/06/23,NURSE - BAND 2 - AGENCY,Place Of Safety Assessment Unit,HCL NURSING,HNSI0001365,2776.93
Department of Health,Leicestershire Partnership NHS Trust,05/06/23,NURSE - BAND 5 - AGENCY,Place Of Safety Assessment Unit,HCL NURSING,HNSI0001365,2427.67
Department of Health,Leicestershire Partnership NHS Trust,05/06/23,NURSE - BAND 2 - AGENCY,Sycamore (Willows),HCL NURSING,HNSI0001365,803.14
Department of Health,Leicestershire Partnership NHS Trust,05/06/23,NURSE - BAND 2 - AGENCY,Thornton Ward - Bradgate Unit,HCL NURSING,HNSI0001365,898.91
Department of Health,Leicestershire Partnership NHS Trust,05/06/23,NURSE - BAND 5 - AGENCY,Thornton Ward - Bradgate Unit,HCL NURSING,HNSI0001365,1848.88
Department of Health,Leicestershire Partnership NHS Trust,05/06/23,Nurse - Band 6 -Agency,CAMHS Waiting List Monies,HCL WORKFORCE SOLUTIONS,HWSI0001768,17190.38
Department of Health,Leicestershire Partnership NHS Trust,05/06/23,Nurse - Band 6 -Agency,Crisis Response and Home Treatment,HCL WORKFORCE SOLUTIONS,HWSI0001768,11267.09
Department of Health,Leicestershire Partnership NHS Trust,05/06/23,NURSE - BAND 2 - AGENCY,CAMHS ED Team,HCL NURSING,HNSI0001367,4934.73
Department of Health,Leicestershire Partnership NHS Trust,05/06/23,NURSE - BAND 2 - AGENCY,CAMHS Inpatient Service,HCL NURSING,HNSI0001367,18406.17
Department of Health,Leicestershire Partnership NHS Trust,05/06/23,NURSE - BAND 5 - AGENCY,CAMHS Inpatient Service,HCL NURSING,HNSI0001367,5583.04
Department of Health,Leicestershire Partnership NHS Trust,05/06/23,NURSE - BAND 2 - AGENCY,CAMHS Learning Disabilities and Outreach Team,HCL NURSING,HNSI0001367,1898.46
Department of Health,Leicestershire Partnership NHS Trust,05/06/23,Nurse - Band 7 - Agency,CAMHS Waiting List Monies,HCL NURSING,HNSI0001367,5199.77
Department of Health,Leicestershire Partnership NHS Trust,05/06/23,NURSE - BAND 2 - AGENCY,Welford Ward (Prev Langley),HCL NURSING,HNSI0001367,369.98
Department of Health,Leicestershire Partnership NHS Trust,05/06/23,NURSE - BAND 5 - AGENCY,Welford Ward (Prev Langley),HCL NURSING,HNSI0001367,1441.71
Department of Health,Leicestershire Partnership NHS Trust,05/06/23,Crs_NHS_LT1y -Resus Inventory Supplied.,Balance Sheet Collection,SUPPLY CHAIN CO LTD,1124053762,25084.53
Department of Health,Leicestershire Partnership NHS Trust,05/06/23,NURSE - BAND 2 - AGENCY,Beechwood Ward,HCL NURSING,HNSI0001366,5111.08
Department of Health,Leicestershire Partnership NHS Trust,05/06/23,NURSE - BAND 5 - AGENCY,Beechwood Ward,HCL NURSING,HNSI0001366,5901.08
Department of Health,Leicestershire Partnership NHS Trust,05/06/23,NURSE - BAND 2 - AGENCY,CHS Surge Ward,HCL NURSING,HNSI0001366,5857.72
Department of Health,Leicestershire Partnership NHS Trust,05/06/23,NURSE - BAND 5 - AGENCY,CHS Surge Ward,HCL NURSING,HNSI0001366,9421.67
Department of Health,Leicestershire Partnership NHS Trust,05/06/23,NURSE - BAND 5 - AGENCY,City Planned Care - East,HCL NURSING,HNSI0001366,12339.04
Department of Health,Leicestershire Partnership NHS Trust,05/06/23,NURSE - BAND 5 - AGENCY,City Planned Care - West,HCL NURSING,HNSI0001366,15366.38
Department of Health,Leicestershire Partnership NHS Trust,05/06/23,NURSE - BAND 2 - AGENCY,Clarendon Ward,HCL NURSING,HNSI0001366,3914.96
Department of Health,Leicestershire Partnership NHS Trust,05/06/23,NURSE - BAND 5 - AGENCY,Clarendon Ward,HCL NURSING,HNSI0001366,3619.92
Department of Health,Leicestershire Partnership NHS Trust,05/06/23,NURSE - BAND 2 - AGENCY,Coalville Snibston Ward,HCL NURSING,HNSI0001366,4326.98
Department of Health,Leicestershire Partnership NHS Trust,05/06/23,NURSE - BAND 5 - AGENCY,Coalville Snibston Ward,HCL NURSING,HNSI0001366,614.35
Department of Health,Leicestershire Partnership NHS Trust,05/06/23,NURSE - BAND 2 - AGENCY,Coalville Ward 2,HCL NURSING,HNSI0001366,5807.16
Department of Health,Leicestershire Partnership NHS Trust,05/06/23,NURSE - BAND 5 - AGENCY,Coalville Ward 2,HCL NURSING,HNSI0001366,2512.35
Department of Health,Leicestershire Partnership NHS Trust,05/06/23,NURSE - BAND 2 - AGENCY,Dalgliesh Ward,HCL NURSING,HNSI0001366,5998.27
Department of Health,Leicestershire Partnership NHS Trust,05/06/23,NURSE - BAND 5 - AGENCY,Dalgliesh Ward,HCL NURSING,HNSI0001366,2308.37
Department of Health,Leicestershire Partnership NHS Trust,05/06/23,NURSE - BAND 2 - AGENCY,H&B Comm Hosp East Ward,HCL NURSING,HNSI0001366,3667.26
Department of Health,Leicestershire Partnership NHS Trust,05/06/23,NURSE - BAND 5 - AGENCY,H&B Comm Hosp East Ward,HCL NURSING,HNSI0001366,10440.10
Department of Health,Leicestershire Partnership NHS Trust,05/06/23,NURSE - BAND 2 - AGENCY,H&B Comm Hosp North Ward,HCL NURSING,HNSI0001366,3819.95
Department of Health,Leicestershire Partnership NHS Trust,05/06/23,NURSE - BAND 5 - AGENCY,H&B Comm Hosp North Ward,HCL NURSING,HNSI0001366,3948.42
Department of Health,Leicestershire Partnership NHS Trust,05/06/23,NURSE - BAND 2 - AGENCY,Lough Swithland Ward,HCL NURSING,HNSI0001366,3378.01
Department of Health,Leicestershire Partnership NHS Trust,05/06/23,NURSE - BAND 5 - AGENCY,Lough Swithland Ward,HCL NURSING,HNSI0001366,986.70
Department of Health,Leicestershire Partnership NHS Trust,05/06/23,NURSE - BAND 2 - AGENCY,Rutland Ward Nursing,HCL NURSING,HNSI0001366,3695.36
Department of Health,Leicestershire Partnership NHS Trust,05/06/23,NURSE - BAND 5 - AGENCY,Rutland Ward Nursing,HCL NURSING,HNSI0001366,1475.72
Department of Health,Leicestershire Partnership NHS Trust,05/06/23,NURSE - BAND 2 - AGENCY,St Lukes Stroke Ward,HCL NURSING,HNSI0001366,5010.61
Department of Health,Leicestershire Partnership NHS Trust,05/06/23,NURSE - BAND 5 - AGENCY,St Lukes Stroke Ward,HCL NURSING,HNSI0001366,1865.83
Department of Health,Leicestershire Partnership NHS Trust,05/06/23,NURSE - BAND 2 - AGENCY,St Lukes Ward 3,HCL NURSING,HNSI0001366,1962.62
Department of Health,Leicestershire Partnership NHS Trust,05/06/23,NURSE - BAND 5 - AGENCY,St Lukes Ward 3,HCL NURSING,HNSI0001366,4309.43
Department of Health,Leicestershire Partnership NHS Trust,06/06/23,CHP Estates Management,Merlyn Vaz Centre (CHP),COMM HLTH PARTNERSHIPS LTD,0060295902,86705.26
Department of Health,Leicestershire Partnership NHS Trust,06/06/23,Drugs,Adult City Drugs,POLAR SPEED THERMOLOGISTICS,0001120210,10682.42
Department of Health,Leicestershire Partnership NHS Trust,06/06/23,Drugs,Adult County Drugs,POLAR SPEED THERMOLOGISTICS,0001120210,16023.64
Department of Health,Leicestershire Partnership NHS Trust,06/06/23,Payroll Deductions -Home Electronics 80 May 23,Balance Sheet Collection,SME HCI LTD,145886,28766.40
Department of Health,Leicestershire Partnership NHS Trust,07/06/23,External Consultancy Fees,Estates & Maintenance Team,TURNER & TOWNSEND PROJECT MANAGEMENT,PRIV00016073,53462.45
Department of Health,Leicestershire Partnership NHS Trust,07/06/23,WIP Project Not in BS - Information Technology,Work in Progress,PHOENIX SOFTWARE LTD,OP/I971299,25179.26
Department of Health,Leicestershire Partnership NHS Trust,08/06/23,HR / Payroll Services,HR Employment Services,LINCOLNSHIRE PART NHSFT(RP7),L0000863,34400.00
Department of Health,Leicestershire Partnership NHS Trust,08/06/23,Computer Software,HIS Infrastructure,IVANTI UK LIMITED,90147475,85802.83
Department of Health,Leicestershire Partnership NHS Trust,08/06/23,Computer Software,Area Team,PHOENIX SOFTWARE LTD,OP/I954143,52113.60
Department of Health,Leicestershire Partnership NHS Trust,08/06/23,WIP Project Not in BS - Buildings excl Dwellings,Work in Progress,TILBURY DOUGLAS CONSTRUCTION LTD,23060010,182271.06
Department of Health,Leicestershire Partnership NHS Trust,09/06/23,Medical Equipment Repairs / Maintenance,Community Health Services Management,SPIRIT DIGITAL LTD,SIN230605SDI00061,43740.00
Department of Health,Leicestershire Partnership NHS Trust,12/06/23,Healthcare Services / Recharges from Non-NHS Bodies,Adult Eating Disorder Collaborative,CYGNET HC LTD,EMED012INV,31566.37
Department of Health,Leicestershire Partnership NHS Trust,12/06/23,Crs_NHS_LT1y -Resus Inventory Supplied.,Balance Sheet Collection,SUPPLY CHAIN CO LTD,1124059423,35228.72
Department of Health,Leicestershire Partnership NHS Trust,12/06/23,NURSE - BAND 2 - AGENCY,Beechwood Ward,HCL NURSING,HNSI0001370,7668.65
Department of Health,Leicestershire Partnership NHS Trust,12/06/23,NURSE - BAND 5 - AGENCY,Beechwood Ward,HCL NURSING,HNSI0001370,7112.54
Department of Health,Leicestershire Partnership NHS Trust,12/06/23,NURSE - BAND 2 - AGENCY,CHS Surge Ward,HCL NURSING,HNSI0001370,8259.88
Department of Health,Leicestershire Partnership NHS Trust,12/06/23,NURSE - BAND 5 - AGENCY,CHS Surge Ward,HCL NURSING,HNSI0001370,9303.28
Department of Health,Leicestershire Partnership NHS Trust,12/06/23,NURSE - BAND 5 - AGENCY,City Planned Care - East,HCL NURSING,HNSI0001370,16285.00
Department of Health,Leicestershire Partnership NHS Trust,12/06/23,NURSE - BAND 5 - AGENCY,City Planned Care - West,HCL NURSING,HNSI0001370,20899.72
Department of Health,Leicestershire Partnership NHS Trust,12/06/23,NURSE - BAND 2 - AGENCY,Clarendon Ward,HCL NURSING,HNSI0001370,5905.63
Department of Health,Leicestershire Partnership NHS Trust,12/06/23,NURSE - BAND 5 - AGENCY,Clarendon Ward,HCL NURSING,HNSI0001370,4808.72
Department of Health,Leicestershire Partnership NHS Trust,12/06/23,NURSE - BAND 2 - AGENCY,Coalville Snibston Ward,HCL NURSING,HNSI0001370,5684.21
Department of Health,Leicestershire Partnership NHS Trust,12/06/23,NURSE - BAND 5 - AGENCY,Coalville Snibston Ward,HCL NURSING,HNSI0001370,2798.71
Department of Health,Leicestershire Partnership NHS Trust,12/06/23,NURSE - BAND 2 - AGENCY,Coalville Ward 2,HCL NURSING,HNSI0001370,3770.92
Department of Health,Leicestershire Partnership NHS Trust,12/06/23,NURSE - BAND 5 - AGENCY,Coalville Ward 2,HCL NURSING,HNSI0001370,419.10
Department of Health,Leicestershire Partnership NHS Trust,12/06/23,NURSE - BAND 2 - AGENCY,Dalgliesh Ward,HCL NURSING,HNSI0001370,3985.07
Department of Health,Leicestershire Partnership NHS Trust,12/06/23,NURSE - BAND 5 - AGENCY,Dalgliesh Ward,HCL NURSING,HNSI0001370,5012.34
Department of Health,Leicestershire Partnership NHS Trust,12/06/23,NURSE - BAND 5 - AGENCY,"East Planned Care - Oadby,Wigston & Harborough",HCL NURSING,HNSI0001370,2739.63
Department of Health,Leicestershire Partnership NHS Trust,12/06/23,NURSE - BAND 2 - AGENCY,H&B Comm Hosp East Ward,HCL NURSING,HNSI0001370,5479.79
Department of Health,Leicestershire Partnership NHS Trust,12/06/23,NURSE - BAND 5 - AGENCY,H&B Comm Hosp East Ward,HCL NURSING,HNSI0001370,10518.03
Department of Health,Leicestershire Partnership NHS Trust,12/06/23,NURSE - BAND 2 - AGENCY,H&B Comm Hosp North Ward,HCL NURSING,HNSI0001370,9708.10
Department of Health,Leicestershire Partnership NHS Trust,12/06/23,NURSE - BAND 5 - AGENCY,H&B Comm Hosp North Ward,HCL NURSING,HNSI0001370,5458.64
Department of Health,Leicestershire Partnership NHS Trust,12/06/23,NURSE - BAND 2 - AGENCY,Lough Swithland Ward,HCL NURSING,HNSI0001370,4081.14
Department of Health,Leicestershire Partnership NHS Trust,12/06/23,NURSE - BAND 5 - AGENCY,Lough Swithland Ward,HCL NURSING,HNSI0001370,2036.56
Department of Health,Leicestershire Partnership NHS Trust,12/06/23,NURSE - BAND 2 - AGENCY,Rutland Ward Nursing,HCL NURSING,HNSI0001370,3035.33
Department of Health,Leicestershire Partnership NHS Trust,12/06/23,NURSE - BAND 5 - AGENCY,Rutland Ward Nursing,HCL NURSING,HNSI0001370,2378.32
Department of Health,Leicestershire Partnership NHS Trust,12/06/23,NURSE - BAND 2 - AGENCY,St Lukes Stroke Ward,HCL NURSING,HNSI0001370,6530.95
Department of Health,Leicestershire Partnership NHS Trust,12/06/23,NURSE - BAND 5 - AGENCY,St Lukes Stroke Ward,HCL NURSING,HNSI0001370,2142.04
Department of Health,Leicestershire Partnership NHS Trust,12/06/23,NURSE - BAND 2 - AGENCY,St Lukes Ward 3,HCL NURSING,HNSI0001370,2705.70
Department of Health,Leicestershire Partnership NHS Trust,12/06/23,NURSE - BAND 5 - AGENCY,St Lukes Ward 3,HCL NURSING,HNSI0001370,1352.78
Department of Health,Leicestershire Partnership NHS Trust,12/06/23,NURSE - BAND 5 - AGENCY,West Planned Care  - Hinckley Hub,HCL NURSING,HNSI0001370,427.04
Department of Health,Leicestershire Partnership NHS Trust,12/06/23,Insurance Costs,Chief Executives Office,NHS LITIGATION AUTHORITY,SICX412437,226283.80
Department of Health,Leicestershire Partnership NHS Trust,13/06/23,Nurse - Band 6 -Agency,AMH - Central Access Point,HCL NURSING,HNSI0001369,3260.66
Department of Health,Leicestershire Partnership NHS Trust,13/06/23,Nurse - Band 7 - Agency,Adult County- East Leicester CMHT,HCL NURSING,HNSI0001369,1260.24
Department of Health,Leicestershire Partnership NHS Trust,13/06/23,NURSE - BAND 2 - AGENCY,Agnes Unit,HCL NURSING,HNSI0001369,18801.80
Department of Health,Leicestershire Partnership NHS Trust,13/06/23,NURSE - BAND 5 - AGENCY,Agnes Unit,HCL NURSING,HNSI0001369,22287.42
Department of Health,Leicestershire Partnership NHS Trust,13/06/23,Nurse - Band 7 - Agency,Agnes Unit,HCL NURSING,HNSI0001369,818.49
Department of Health,Leicestershire Partnership NHS Trust,13/06/23,NURSE - BAND 2 - AGENCY,Ashby Ward (Bradgate Unit),HCL NURSING,HNSI0001369,5311.91
Department of Health,Leicestershire Partnership NHS Trust,13/06/23,NURSE - BAND 5 - AGENCY,Ashby Ward (Bradgate Unit),HCL NURSING,HNSI0001369,13994.62
Department of Health,Leicestershire Partnership NHS Trust,13/06/23,NURSE - BAND 2 - AGENCY,Aston Ward Bradgate Unit (Prev Welford),HCL NURSING,HNSI0001369,2069.60
Department of Health,Leicestershire Partnership NHS Trust,13/06/23,NURSE - BAND 5 - AGENCY,Aston Ward Bradgate Unit (Prev Welford),HCL NURSING,HNSI0001369,3287.78
Department of Health,Leicestershire Partnership NHS Trust,13/06/23,NURSE - BAND 2 - AGENCY,Beaumont Ward - Bradgate Unit,HCL NURSING,HNSI0001369,6319.99
Department of Health,Leicestershire Partnership NHS Trust,13/06/23,NURSE - BAND 5 - AGENCY,Beaumont Ward - Bradgate Unit,HCL NURSING,HNSI0001369,12259.81
Department of Health,Leicestershire Partnership NHS Trust,13/06/23,NURSE - BAND 2 - AGENCY,Belvoir Psychiatric Intensive Care Unit,HCL NURSING,HNSI0001369,11476.89
Department of Health,Leicestershire Partnership NHS Trust,13/06/23,NURSE - BAND 5 - AGENCY,Belvoir Psychiatric Intensive Care Unit,HCL NURSING,HNSI0001369,7998.97
Department of Health,Leicestershire Partnership NHS Trust,13/06/23,NURSE - BAND 2 - AGENCY,Bosworth Ward - Bradgate Unit,HCL NURSING,HNSI0001369,4088.22
Department of Health,Leicestershire Partnership NHS Trust,13/06/23,NURSE - BAND 5 - AGENCY,Bosworth Ward - Bradgate Unit,HCL NURSING,HNSI0001369,1967.58
Department of Health,Leicestershire Partnership NHS Trust,13/06/23,NURSE - BAND 2 - AGENCY,Cedar (Willows),HCL NURSING,HNSI0001369,327.78
Department of Health,Leicestershire Partnership NHS Trust,13/06/23,NURSE - BAND 5 - AGENCY,Cedar (Willows),HCL NURSING,HNSI0001369,437.47
Department of Health,Leicestershire Partnership NHS Trust,13/06/23,Nurse - Band 6 -Agency,City West CMHT MHSOP,HCL NURSING,HNSI0001369,1883.25
Department of Health,Leicestershire Partnership NHS Trust,13/06/23,NURSE - BAND 2 - AGENCY,Coleman Ward,HCL NURSING,HNSI0001369,3785.10
Department of Health,Leicestershire Partnership NHS Trust,13/06/23,NURSE - BAND 5 - AGENCY,Coleman Ward,HCL NURSING,HNSI0001369,3191.61
Department of Health,Leicestershire Partnership NHS Trust,13/06/23,NURSE - BAND 5 - AGENCY,Crisis Resolution,HCL NURSING,HNSI0001369,2458.56
Department of Health,Leicestershire Partnership NHS Trust,13/06/23,NURSE - BAND 2 - AGENCY,Griffin Ward (HPC),HCL NURSING,HNSI0001369,5864.34
Department of Health,Leicestershire Partnership NHS Trust,13/06/23,NURSE - BAND 5 - AGENCY,Griffin Ward (HPC),HCL NURSING,HNSI0001369,5169.53
Department of Health,Leicestershire Partnership NHS Trust,13/06/23,NURSE - BAND 2 - AGENCY,Gwendolen Ward,HCL NURSING,HNSI0001369,3393.14
Department of Health,Leicestershire Partnership NHS Trust,13/06/23,NURSE - BAND 5 - AGENCY,Gwendolen Ward,HCL NURSING,HNSI0001369,1032.76
Department of Health,Leicestershire Partnership NHS Trust,13/06/23,NURSE - BAND 2 - AGENCY,Heather Ward,HCL NURSING,HNSI0001369,3872.39
Department of Health,Leicestershire Partnership NHS Trust,13/06/23,NURSE - BAND 5 - AGENCY,Heather Ward,HCL NURSING,HNSI0001369,3927.62
Department of Health,Leicestershire Partnership NHS Trust,13/06/23,NURSE - BAND 2 - AGENCY,Kirby Ward,HCL NURSING,HNSI0001369,4129.65
Department of Health,Leicestershire Partnership NHS Trust,13/06/23,NURSE - BAND 5 - AGENCY,Kirby Ward,HCL NURSING,HNSI0001369,1090.78
Department of Health,Leicestershire Partnership NHS Trust,13/06/23,NURSE - BAND 2 - AGENCY,Maple Ward,HCL NURSING,HNSI0001369,252.81
Department of Health,Leicestershire Partnership NHS Trust,13/06/23,Nurse - Band 6 -Agency,Mental Health Liaison Team,HCL NURSING,HNSI0001369,2589.76
Department of Health,Leicestershire Partnership NHS Trust,13/06/23,NURSE - BAND 2 - AGENCY,Mill Lodge,HCL NURSING,HNSI0001369,2762.03
Department of Health,Leicestershire Partnership NHS Trust,13/06/23,NURSE - BAND 5 - AGENCY,Mill Lodge,HCL NURSING,HNSI0001369,3574.45
Department of Health,Leicestershire Partnership NHS Trust,13/06/23,NURSE - BAND 2 - AGENCY,Phoenix Ward (HPC),HCL NURSING,HNSI0001369,1148.89
Department of Health,Leicestershire Partnership NHS Trust,13/06/23,NURSE - BAND 5 - AGENCY,Phoenix Ward (HPC),HCL NURSING,HNSI0001369,3972.81
Department of Health,Leicestershire Partnership NHS Trust,13/06/23,NURSE - BAND 2 - AGENCY,Place Of Safety Assessment Unit,HCL NURSING,HNSI0001369,471.59
Department of Health,Leicestershire Partnership NHS Trust,13/06/23,NURSE - BAND 5 - AGENCY,Place Of Safety Assessment Unit,HCL NURSING,HNSI0001369,5492.78
Department of Health,Leicestershire Partnership NHS Trust,13/06/23,NURSE - BAND 5 - AGENCY,Sycamore (Willows),HCL NURSING,HNSI0001369,539.30
Department of Health,Leicestershire Partnership NHS Trust,13/06/23,NURSE - BAND 2 - AGENCY,Thornton Ward - Bradgate Unit,HCL NURSING,HNSI0001369,970.03
Department of Health,Leicestershire Partnership NHS Trust,13/06/23,NURSE - BAND 5 - AGENCY,Thornton Ward - Bradgate Unit,HCL NURSING,HNSI0001369,1870.85
Department of Health,Leicestershire Partnership NHS Trust,13/06/23,Nurse - Band 6 -Agency,CAMHS Waiting List Monies,HCL WORKFORCE SOLUTIONS,HWSI0001781,14450.98
Department of Health,Leicestershire Partnership NHS Trust,13/06/23,Nurse - Band 6 -Agency,Crisis Response and Home Treatment,HCL WORKFORCE SOLUTIONS,HWSI0001781,8349.68
Department of Health,Leicestershire Partnership NHS Trust,13/06/23,NURSE - BAND 2 - AGENCY,CAMHS ED Team,HCL NURSING,HNSI0001371,2510.18
Department of Health,Leicestershire Partnership NHS Trust,13/06/23,NURSE - BAND 2 - AGENCY,CAMHS Inpatient Service,HCL NURSING,HNSI0001371,19578.06
Department of Health,Leicestershire Partnership NHS Trust,13/06/23,NURSE - BAND 5 - AGENCY,CAMHS Inpatient Service,HCL NURSING,HNSI0001371,7489.48
Department of Health,Leicestershire Partnership NHS Trust,13/06/23,NURSE - BAND 2 - AGENCY,CAMHS Outpatients,HCL NURSING,HNSI0001371,2639.34
Department of Health,Leicestershire Partnership NHS Trust,13/06/23,NURSE - BAND 5 - AGENCY,CAMHS Outpatients,HCL NURSING,HNSI0001371,1621.60
Department of Health,Leicestershire Partnership NHS Trust,13/06/23,Nurse - Band 6 -Agency,CAMHS Waiting List Monies,HCL NURSING,HNSI0001371,1921.00
Department of Health,Leicestershire Partnership NHS Trust,13/06/23,Nurse - Band 7 - Agency,CAMHS Waiting List Monies,HCL NURSING,HNSI0001371,2447.51
Department of Health,Leicestershire Partnership NHS Trust,13/06/23,NURSE - BAND 5 - AGENCY,Welford Ward (Prev Langley),HCL NURSING,HNSI0001371,778.18
Department of Health,Leicestershire Partnership NHS Trust,14/06/23,WIP Project Not in BS - Buildings excl Dwellings,Work in Progress,TILBURY DOUGLAS CONSTRUCTION LTD,23060130,48799.45
Department of Health,Leicestershire Partnership NHS Trust,14/06/23,WIP Project Not in BS - Buildings excl Dwellings,Work in Progress,TILBURY DOUGLAS CONSTRUCTION LTD,23060133,74938.44
Department of Health,Leicestershire Partnership NHS Trust,14/06/23,WIP Project Not in BS - Buildings excl Dwellings,Work in Progress,TILBURY DOUGLAS CONSTRUCTION LTD,23060132,89247.18
Department of Health,Leicestershire Partnership NHS Trust,14/06/23,Mobile Telephone Rental / Calls,Specific Unit Budget Reserves,VODAFONE CORPORATE LTD,JUNE2023,69851.51
Department of Health,Leicestershire Partnership NHS Trust,15/06/23,NURSE - BAND 2 - AGENCY,Beechwood Ward,HCL NURSING,HNSI0001377,9206.52
Department of Health,Leicestershire Partnership NHS Trust,15/06/23,NURSE - BAND 5 - AGENCY,Beechwood Ward,HCL NURSING,HNSI0001377,4709.87
Department of Health,Leicestershire Partnership NHS Trust,15/06/23,NURSE - BAND 2 - AGENCY,CHS Surge Ward,HCL NURSING,HNSI0001377,9799.24
Department of Health,Leicestershire Partnership NHS Trust,15/06/23,NURSE - BAND 5 - AGENCY,CHS Surge Ward,HCL NURSING,HNSI0001377,7574.29
Department of Health,Leicestershire Partnership NHS Trust,15/06/23,NURSE - BAND 5 - AGENCY,City Planned Care - East,HCL NURSING,HNSI0001377,12826.56
Department of Health,Leicestershire Partnership NHS Trust,15/06/23,NURSE - BAND 5 - AGENCY,City Planned Care - West,HCL NURSING,HNSI0001377,7077.66
Department of Health,Leicestershire Partnership NHS Trust,15/06/23,NURSE - BAND 2 - AGENCY,Clarendon Ward,HCL NURSING,HNSI0001377,4058.83
Department of Health,Leicestershire Partnership NHS Trust,15/06/23,NURSE - BAND 5 - AGENCY,Clarendon Ward,HCL NURSING,HNSI0001377,1430.03
Department of Health,Leicestershire Partnership NHS Trust,15/06/23,NURSE - BAND 2 - AGENCY,Coalville Snibston Ward,HCL NURSING,HNSI0001377,2479.83
Department of Health,Leicestershire Partnership NHS Trust,15/06/23,NURSE - BAND 5 - AGENCY,Coalville Snibston Ward,HCL NURSING,HNSI0001377,291.46
Department of Health,Leicestershire Partnership NHS Trust,15/06/23,NURSE - BAND 2 - AGENCY,Coalville Ward 2,HCL NURSING,HNSI0001377,4138.56
Department of Health,Leicestershire Partnership NHS Trust,15/06/23,NURSE - BAND 2 - AGENCY,Dalgliesh Ward,HCL NURSING,HNSI0001377,2329.61
Department of Health,Leicestershire Partnership NHS Trust,15/06/23,NURSE - BAND 5 - AGENCY,Dalgliesh Ward,HCL NURSING,HNSI0001377,4172.66
Department of Health,Leicestershire Partnership NHS Trust,15/06/23,NURSE - BAND 5 - AGENCY,"East Planned Care - Oadby,Wigston & Harborough",HCL NURSING,HNSI0001377,2031.65
Department of Health,Leicestershire Partnership NHS Trust,15/06/23,NURSE - BAND 2 - AGENCY,H&B Comm Hosp East Ward,HCL NURSING,HNSI0001377,2269.90
Department of Health,Leicestershire Partnership NHS Trust,15/06/23,NURSE - BAND 5 - AGENCY,H&B Comm Hosp East Ward,HCL NURSING,HNSI0001377,11046.76
Department of Health,Leicestershire Partnership NHS Trust,15/06/23,NURSE - BAND 2 - AGENCY,H&B Comm Hosp North Ward,HCL NURSING,HNSI0001377,2985.45
Department of Health,Leicestershire Partnership NHS Trust,15/06/23,NURSE - BAND 5 - AGENCY,H&B Comm Hosp North Ward,HCL NURSING,HNSI0001377,4010.38
Department of Health,Leicestershire Partnership NHS Trust,15/06/23,NURSE - BAND 2 - AGENCY,Lough Swithland Ward,HCL NURSING,HNSI0001377,3080.57
Department of Health,Leicestershire Partnership NHS Trust,15/06/23,NURSE - BAND 5 - AGENCY,Lough Swithland Ward,HCL NURSING,HNSI0001377,1903.51
Department of Health,Leicestershire Partnership NHS Trust,15/06/23,NURSE - BAND 2 - AGENCY,Rutland Ward Nursing,HCL NURSING,HNSI0001377,3644.25
Department of Health,Leicestershire Partnership NHS Trust,15/06/23,NURSE - BAND 5 - AGENCY,Rutland Ward Nursing,HCL NURSING,HNSI0001377,3626.63
Department of Health,Leicestershire Partnership NHS Trust,15/06/23,NURSE - BAND 2 - AGENCY,St Lukes Stroke Ward,HCL NURSING,HNSI0001377,5888.31
Department of Health,Leicestershire Partnership NHS Trust,15/06/23,NURSE - BAND 5 - AGENCY,St Lukes Stroke Ward,HCL NURSING,HNSI0001377,2217.74
Department of Health,Leicestershire Partnership NHS Trust,15/06/23,NURSE - BAND 2 - AGENCY,St Lukes Ward 3,HCL NURSING,HNSI0001377,1581.69
Department of Health,Leicestershire Partnership NHS Trust,15/06/23,NURSE - BAND 5 - AGENCY,St Lukes Ward 3,HCL NURSING,HNSI0001377,2868.26
Department of Health,Leicestershire Partnership NHS Trust,15/06/23,Healthcare Services / Recharges from Non-NHS Bodies,Adult Eating Disorder Collaborative,ELLERN MEDE MOORGATE,OTM0653,37200.00
Department of Health,Leicestershire Partnership NHS Trust,16/06/23,Nurse - Band 6 -Agency,AMH - Central Access Point,HCL NURSING,HNSI0001376,2543.54
Department of Health,Leicestershire Partnership NHS Trust,16/06/23,Nurse - Band 7 - Agency,Adult County South Leicestershire CMHT,HCL NURSING,HNSI0001376,353.05
Department of Health,Leicestershire Partnership NHS Trust,16/06/23,Nurse - Band 7 - Agency,Adult County- East Leicester CMHT,HCL NURSING,HNSI0001376,347.81
Department of Health,Leicestershire Partnership NHS Trust,16/06/23,NURSE - BAND 2 - AGENCY,Agnes Unit,HCL NURSING,HNSI0001376,18484.89
Department of Health,Leicestershire Partnership NHS Trust,16/06/23,NURSE - BAND 5 - AGENCY,Agnes Unit,HCL NURSING,HNSI0001376,17712.48
Department of Health,Leicestershire Partnership NHS Trust,16/06/23,Nurse - Band 7 - Agency,Agnes Unit,HCL NURSING,HNSI0001376,1974.00
Department of Health,Leicestershire Partnership NHS Trust,16/06/23,NURSE - BAND 2 - AGENCY,Ashby Ward (Bradgate Unit),HCL NURSING,HNSI0001376,1724.28
Department of Health,Leicestershire Partnership NHS Trust,16/06/23,NURSE - BAND 5 - AGENCY,Ashby Ward (Bradgate Unit),HCL NURSING,HNSI0001376,6358.07
Department of Health,Leicestershire Partnership NHS Trust,16/06/23,NURSE - BAND 2 - AGENCY,Aston Ward Bradgate Unit (Prev Welford),HCL NURSING,HNSI0001376,955.56
Department of Health,Leicestershire Partnership NHS Trust,16/06/23,NURSE - BAND 5 - AGENCY,Aston Ward Bradgate Unit (Prev Welford),HCL NURSING,HNSI0001376,3667.49
Department of Health,Leicestershire Partnership NHS Trust,16/06/23,NURSE - BAND 2 - AGENCY,Beaumont Ward - Bradgate Unit,HCL NURSING,HNSI0001376,7202.54
Department of Health,Leicestershire Partnership NHS Trust,16/06/23,NURSE - BAND 5 - AGENCY,Beaumont Ward - Bradgate Unit,HCL NURSING,HNSI0001376,9304.80
Department of Health,Leicestershire Partnership NHS Trust,16/06/23,NURSE - BAND 2 - AGENCY,Belvoir Psychiatric Intensive Care Unit,HCL NURSING,HNSI0001376,6168.26
Department of Health,Leicestershire Partnership NHS Trust,16/06/23,NURSE - BAND 5 - AGENCY,Belvoir Psychiatric Intensive Care Unit,HCL NURSING,HNSI0001376,6444.13
Department of Health,Leicestershire Partnership NHS Trust,16/06/23,NURSE - BAND 2 - AGENCY,Bosworth Ward - Bradgate Unit,HCL NURSING,HNSI0001376,1202.10
Department of Health,Leicestershire Partnership NHS Trust,16/06/23,NURSE - BAND 5 - AGENCY,Bosworth Ward - Bradgate Unit,HCL NURSING,HNSI0001376,3707.41
Department of Health,Leicestershire Partnership NHS Trust,16/06/23,NURSE - BAND 5 - AGENCY,Cedar (Willows),HCL NURSING,HNSI0001376,283.64
Department of Health,Leicestershire Partnership NHS Trust,16/06/23,Nurse - Band 6 -Agency,City West CMHT MHSOP,HCL NURSING,HNSI0001376,1046.25
Department of Health,Leicestershire Partnership NHS Trust,16/06/23,NURSE - BAND 2 - AGENCY,Coleman Ward,HCL NURSING,HNSI0001376,2859.13
Department of Health,Leicestershire Partnership NHS Trust,16/06/23,NURSE - BAND 5 - AGENCY,Coleman Ward,HCL NURSING,HNSI0001376,2247.37
Department of Health,Leicestershire Partnership NHS Trust,16/06/23,NURSE - BAND 5 - AGENCY,Crisis Resolution,HCL NURSING,HNSI0001376,1321.42
Department of Health,Leicestershire Partnership NHS Trust,16/06/23,NURSE - BAND 2 - AGENCY,Griffin Ward (HPC),HCL NURSING,HNSI0001376,3927.81
Department of Health,Leicestershire Partnership NHS Trust,16/06/23,NURSE - BAND 5 - AGENCY,Griffin Ward (HPC),HCL NURSING,HNSI0001376,3323.15
Department of Health,Leicestershire Partnership NHS Trust,16/06/23,NURSE - BAND 2 - AGENCY,Gwendolen Ward,HCL NURSING,HNSI0001376,648.92
Department of Health,Leicestershire Partnership NHS Trust,16/06/23,NURSE - BAND 5 - AGENCY,Gwendolen Ward,HCL NURSING,HNSI0001376,493.45
Department of Health,Leicestershire Partnership NHS Trust,16/06/23,NURSE - BAND 2 - AGENCY,Heather Ward,HCL NURSING,HNSI0001376,3421.50
Department of Health,Leicestershire Partnership NHS Trust,16/06/23,NURSE - BAND 5 - AGENCY,Heather Ward,HCL NURSING,HNSI0001376,1285.03
Department of Health,Leicestershire Partnership NHS Trust,16/06/23,NURSE - BAND 2 - AGENCY,Kirby Ward,HCL NURSING,HNSI0001376,6472.50
Department of Health,Leicestershire Partnership NHS Trust,16/06/23,Nurse - Band 6 -Agency,Mental Health Liaison Team,HCL NURSING,HNSI0001376,1773.46
Department of Health,Leicestershire Partnership NHS Trust,16/06/23,NURSE - BAND 2 - AGENCY,Mill Lodge,HCL NURSING,HNSI0001376,1035.23
Department of Health,Leicestershire Partnership NHS Trust,16/06/23,NURSE - BAND 5 - AGENCY,Mill Lodge,HCL NURSING,HNSI0001376,2522.12
Department of Health,Leicestershire Partnership NHS Trust,16/06/23,NURSE - BAND 2 - AGENCY,Phoenix Ward (HPC),HCL NURSING,HNSI0001376,3380.01
Department of Health,Leicestershire Partnership NHS Trust,16/06/23,NURSE - BAND 5 - AGENCY,Phoenix Ward (HPC),HCL NURSING,HNSI0001376,1956.70
Department of Health,Leicestershire Partnership NHS Trust,16/06/23,NURSE - BAND 2 - AGENCY,Place Of Safety Assessment Unit,HCL NURSING,HNSI0001376,619.76
Department of Health,Leicestershire Partnership NHS Trust,16/06/23,NURSE - BAND 5 - AGENCY,Place Of Safety Assessment Unit,HCL NURSING,HNSI0001376,2769.37
Department of Health,Leicestershire Partnership NHS Trust,16/06/23,NURSE - BAND 2 - AGENCY,Sycamore (Willows),HCL NURSING,HNSI0001376,794.50
Department of Health,Leicestershire Partnership NHS Trust,16/06/23,NURSE - BAND 2 - AGENCY,Thornton Ward - Bradgate Unit,HCL NURSING,HNSI0001376,1472.70
Department of Health,Leicestershire Partnership NHS Trust,16/06/23,NURSE - BAND 5 - AGENCY,Thornton Ward - Bradgate Unit,HCL NURSING,HNSI0001376,2040.57
Department of Health,Leicestershire Partnership NHS Trust,16/06/23,NURSE - BAND 2 - AGENCY,CAMHS ED Team,HCL NURSING,HNSI0001378,2564.73
Department of Health,Leicestershire Partnership NHS Trust,16/06/23,NURSE - BAND 2 - AGENCY,CAMHS Inpatient Service,HCL NURSING,HNSI0001378,17784.48
Department of Health,Leicestershire Partnership NHS Trust,16/06/23,NURSE - BAND 5 - AGENCY,CAMHS Inpatient Service,HCL NURSING,HNSI0001378,5115.99
Department of Health,Leicestershire Partnership NHS Trust,16/06/23,NURSE - BAND 2 - AGENCY,CAMHS Learning Disabilities and Outreach Team,HCL NURSING,HNSI0001378,630.23
Department of Health,Leicestershire Partnership NHS Trust,16/06/23,NURSE - BAND 2 - AGENCY,CAMHS Outpatients,HCL NURSING,HNSI0001378,241.23
Department of Health,Leicestershire Partnership NHS Trust,16/06/23,Nurse - Band 6 -Agency,CAMHS Waiting List Monies,HCL NURSING,HNSI0001378,831.25
Department of Health,Leicestershire Partnership NHS Trust,16/06/23,Nurse - Band 7 - Agency,CAMHS Waiting List Monies,HCL NURSING,HNSI0001378,2447.51
Department of Health,Leicestershire Partnership NHS Trust,16/06/23,Nurse - Band 7 - Agency,Crisis Response and Home Treatment,HCL NURSING,HNSI0001378,2752.25
Department of Health,Leicestershire Partnership NHS Trust,16/06/23,NURSE - BAND 2 - AGENCY,Welford Ward (Prev Langley),HCL NURSING,HNSI0001378,301.51
Department of Health,Leicestershire Partnership NHS Trust,16/06/23,NURSE - BAND 5 - AGENCY,Welford Ward (Prev Langley),HCL NURSING,HNSI0001378,2427.18
Department of Health,Leicestershire Partnership NHS Trust,16/06/23,Nurse - Band 6 -Agency,CAMHS Waiting List Monies,HCL WORKFORCE SOLUTIONS,HWSI0001790,14286.31
Department of Health,Leicestershire Partnership NHS Trust,16/06/23,Nurse - Band 6 -Agency,Crisis Response and Home Treatment,HCL WORKFORCE SOLUTIONS,HWSI0001790,10566.84
Department of Health,Leicestershire Partnership NHS Trust,16/06/23,Network Costs - WAN Maint,HIS Infrastructure,VIRGIN MEDIA BUSINESS,919266-153,247002.16
Department of Health,Leicestershire Partnership NHS Trust,16/06/23,Network Costs - WAN Maint,HIS Infrastructure,VIRGIN MEDIA BUSINESS,262421-207,36115.31
Department of Health,Leicestershire Partnership NHS Trust,16/06/23,Network Costs - WAN Maint,HIS Infrastructure,VIRGIN MEDIA BUSINESS,262421-209,36115.31
Department of Health,Leicestershire Partnership NHS Trust,16/06/23,Network Costs - WAN Maint,HIS Infrastructure,VIRGIN MEDIA BUSINESS,262421-208,36115.31
Department of Health,Leicestershire Partnership NHS Trust,16/06/23,Services / Recharges from NHS Trusts,Inter Unit I & E Distribution,UHL NHS TRUST (RWE),L0271594,35116.63
Department of Health,Leicestershire Partnership NHS Trust,19/06/23,Computer Software,HR Employment Services,SOFTCAT PLC,INVUK891717,202808.40
Department of Health,Leicestershire Partnership NHS Trust,19/06/23,Crs_NHS_LT1y -Resus Inventory Supplied.,Balance Sheet Collection,SUPPLY CHAIN CO LTD,1124066944,33691.95
Department of Health,Leicestershire Partnership NHS Trust,20/06/23,Services / Recharges from NHS Trusts,Adult Eating Disorder Collaborative,NORTHAMPTONSHIRE HC NHS FT (RP1),5154024,25000.00
Department of Health,Leicestershire Partnership NHS Trust,20/06/23,Med GP Trainees,Medical Trainees,MWL TEACHING HOSPITALS NHS TRUST,16822564,75000.00
Department of Health,Leicestershire Partnership NHS Trust,22/06/23,FP10'S,Adult City Drugs,NHS BUS SERVICES AUTHORITY,1000077721,19904.43
Department of Health,Leicestershire Partnership NHS Trust,22/06/23,FP10'S,Adult County Drugs,NHS BUS SERVICES AUTHORITY,1000077721,8655.30
Department of Health,Leicestershire Partnership NHS Trust,22/06/23,FP10'S,CAMHS Outpatients,NHS BUS SERVICES AUTHORITY,1000077721,3636.38
Department of Health,Leicestershire Partnership NHS Trust,22/06/23,FP10'S,Community Paediatrics,NHS BUS SERVICES AUTHORITY,1000077721,6.49
Department of Health,Leicestershire Partnership NHS Trust,22/06/23,FP10'S,Dementia Related Drugs and Investigations,NHS BUS SERVICES AUTHORITY,1000077721,9839.84
Department of Health,Leicestershire Partnership NHS Trust,22/06/23,FP10'S,Eating Disorders Outpatient Service,NHS BUS SERVICES AUTHORITY,1000077721,1605.95
Department of Health,Leicestershire Partnership NHS Trust,22/06/23,FP10'S,Forensic Services - Community,NHS BUS SERVICES AUTHORITY,1000077721,741.90
Department of Health,Leicestershire Partnership NHS Trust,22/06/23,FP10'S,LOROS Pharmacy,NHS BUS SERVICES AUTHORITY,1000077721,1407.66
Department of Health,Leicestershire Partnership NHS Trust,22/06/23,FP10'S,Lough Swithland Ward,NHS BUS SERVICES AUTHORITY,1000077721,7.09
Department of Health,Leicestershire Partnership NHS Trust,22/06/23,FP10'S,Mental Health Liaison Team,NHS BUS SERVICES AUTHORITY,1000077721,39.31
Department of Health,Leicestershire Partnership NHS Trust,22/06/23,FP10'S,PIER Team - Early Intervention Services,NHS BUS SERVICES AUTHORITY,1000077721,11540.93
Department of Health,Leicestershire Partnership NHS Trust,22/06/23,FP10'S,Pharmacy,NHS BUS SERVICES AUTHORITY,1000077721,62771.28
Department of Health,Leicestershire Partnership NHS Trust,22/06/23,FP10'S,Snr Med Staff (Inc Med Reps),NHS BUS SERVICES AUTHORITY,1000077721,4889.70
Department of Health,Leicestershire Partnership NHS Trust,26/06/23,NURSE - BAND 2 - AGENCY,Beechwood Ward,HCL NURSING,HNSI0001384,6757.53
Department of Health,Leicestershire Partnership NHS Trust,26/06/23,NURSE - BAND 5 - AGENCY,Beechwood Ward,HCL NURSING,HNSI0001384,4243.87
Department of Health,Leicestershire Partnership NHS Trust,26/06/23,NURSE - BAND 2 - AGENCY,CHS Surge Ward,HCL NURSING,HNSI0001384,10705.74
Department of Health,Leicestershire Partnership NHS Trust,26/06/23,NURSE - BAND 5 - AGENCY,CHS Surge Ward,HCL NURSING,HNSI0001384,5640.98
Department of Health,Leicestershire Partnership NHS Trust,26/06/23,NURSE - BAND 5 - AGENCY,City Planned Care - East,HCL NURSING,HNSI0001384,14736.33
Department of Health,Leicestershire Partnership NHS Trust,26/06/23,NURSE - BAND 5 - AGENCY,City Planned Care - West,HCL NURSING,HNSI0001384,20647.38
Department of Health,Leicestershire Partnership NHS Trust,26/06/23,NURSE - BAND 2 - AGENCY,Clarendon Ward,HCL NURSING,HNSI0001384,5581.75
Department of Health,Leicestershire Partnership NHS Trust,26/06/23,NURSE - BAND 5 - AGENCY,Clarendon Ward,HCL NURSING,HNSI0001384,368.29
Department of Health,Leicestershire Partnership NHS Trust,26/06/23,NURSE - BAND 2 - AGENCY,Coalville Snibston Ward,HCL NURSING,HNSI0001384,5688.04
Department of Health,Leicestershire Partnership NHS Trust,26/06/23,NURSE - BAND 5 - AGENCY,Coalville Snibston Ward,HCL NURSING,HNSI0001384,552.85
Department of Health,Leicestershire Partnership NHS Trust,26/06/23,NURSE - BAND 2 - AGENCY,Coalville Ward 2,HCL NURSING,HNSI0001384,1862.95
Department of Health,Leicestershire Partnership NHS Trust,26/06/23,NURSE - BAND 5 - AGENCY,Coalville Ward 2,HCL NURSING,HNSI0001384,883.94
Department of Health,Leicestershire Partnership NHS Trust,26/06/23,NURSE - BAND 2 - AGENCY,Dalgliesh Ward,HCL NURSING,HNSI0001384,1994.40
Department of Health,Leicestershire Partnership NHS Trust,26/06/23,NURSE - BAND 5 - AGENCY,Dalgliesh Ward,HCL NURSING,HNSI0001384,1864.27
Department of Health,Leicestershire Partnership NHS Trust,26/06/23,NURSE - BAND 5 - AGENCY,East Planned Care - Blaby/Lutterworth,HCL NURSING,HNSI0001384,443.46
Department of Health,Leicestershire Partnership NHS Trust,26/06/23,NURSE - BAND 5 - AGENCY,"East Planned Care - Melton,Syston,Rutland",HCL NURSING,HNSI0001384,3846.32
Department of Health,Leicestershire Partnership NHS Trust,26/06/23,NURSE - BAND 5 - AGENCY,"East Planned Care - Oadby,Wigston & Harborough",HCL NURSING,HNSI0001384,3585.80
Department of Health,Leicestershire Partnership NHS Trust,26/06/23,NURSE - BAND 2 - AGENCY,H&B Comm Hosp East Ward,HCL NURSING,HNSI0001384,2735.95
Department of Health,Leicestershire Partnership NHS Trust,26/06/23,NURSE - BAND 5 - AGENCY,H&B Comm Hosp East Ward,HCL NURSING,HNSI0001384,11117.83
Department of Health,Leicestershire Partnership NHS Trust,26/06/23,NURSE - BAND 2 - AGENCY,H&B Comm Hosp North Ward,HCL NURSING,HNSI0001384,1892.95
Department of Health,Leicestershire Partnership NHS Trust,26/06/23,NURSE - BAND 5 - AGENCY,H&B Comm Hosp North Ward,HCL NURSING,HNSI0001384,1082.30
Department of Health,Leicestershire Partnership NHS Trust,26/06/23,NURSE - BAND 2 - AGENCY,Lough Swithland Ward,HCL NURSING,HNSI0001384,3154.15
Department of Health,Leicestershire Partnership NHS Trust,26/06/23,NURSE - BAND 5 - AGENCY,Lough Swithland Ward,HCL NURSING,HNSI0001384,2202.20
Department of Health,Leicestershire Partnership NHS Trust,26/06/23,NURSE - BAND 2 - AGENCY,Rutland Ward Nursing,HCL NURSING,HNSI0001384,1568.08
Department of Health,Leicestershire Partnership NHS Trust,26/06/23,NURSE - BAND 5 - AGENCY,Rutland Ward Nursing,HCL NURSING,HNSI0001384,3439.01
Department of Health,Leicestershire Partnership NHS Trust,26/06/23,NURSE - BAND 2 - AGENCY,St Lukes Stroke Ward,HCL NURSING,HNSI0001384,7536.74
Department of Health,Leicestershire Partnership NHS Trust,26/06/23,NURSE - BAND 5 - AGENCY,St Lukes Stroke Ward,HCL NURSING,HNSI0001384,2892.67
Department of Health,Leicestershire Partnership NHS Trust,26/06/23,NURSE - BAND 2 - AGENCY,St Lukes Ward 3,HCL NURSING,HNSI0001384,2326.52
Department of Health,Leicestershire Partnership NHS Trust,26/06/23,NURSE - BAND 5 - AGENCY,St Lukes Ward 3,HCL NURSING,HNSI0001384,1773.80
Department of Health,Leicestershire Partnership NHS Trust,26/06/23,NURSE - BAND 5 - AGENCY,West Planned Care  - Hinckley Hub,HCL NURSING,HNSI0001384,309.42
Department of Health,Leicestershire Partnership NHS Trust,26/06/23,NURSE - BAND 5 - AGENCY,West Planned Care - NWL Hub,HCL NURSING,HNSI0001384,984.26
Department of Health,Leicestershire Partnership NHS Trust,26/06/23,Internal Printing (machines and ink),Estates & Facilities Central,LEXMARK INTERNATIONAL LTD,900650305957,28553.06
Department of Health,Leicestershire Partnership NHS Trust,26/06/23,Crs_NHS_LT1y -Resus Inventory Supplied.,Balance Sheet Collection,SUPPLY CHAIN CO LTD,1124074280,38393.20
Department of Health,Leicestershire Partnership NHS Trust,26/06/23,Gas,"Beaumont Leys Health Centre (P94, LPT)",TOTAL GAS & POWER LTD,304297196/23,1237.68
Department of Health,Leicestershire Partnership NHS Trust,26/06/23,Gas,"Bennion Centre (including Forest Grange Day Unit) (P8, LPT)",TOTAL GAS & POWER LTD,304297196/23,13084.55
Department of Health,Leicestershire Partnership NHS Trust,26/06/23,Gas,"Bradgate Unit (including Glenvale day Unit) (P7, LPT)",TOTAL GAS & POWER LTD,304297196/23,22481.76
Department of Health,Leicestershire Partnership NHS Trust,26/06/23,Gas,Bridge Park Plaza - First Floor (LPT),TOTAL GAS & POWER LTD,304297196/23,2321.98
Department of Health,Leicestershire Partnership NHS Trust,26/06/23,Gas,"Bridge Park Road - Units 2 and 3 (P148, LPT)",TOTAL GAS & POWER LTD,304297196/23,463.22
Department of Health,Leicestershire Partnership NHS Trust,26/06/23,Gas,"Coalville Community Hospital (P138, LPT)",TOTAL GAS & POWER LTD,304297196/23,16029.98
Department of Health,Leicestershire Partnership NHS Trust,26/06/23,Gas,"Coalville Health Centre (P121, LPT)",TOTAL GAS & POWER LTD,304297196/23,1083.88
Department of Health,Leicestershire Partnership NHS Trust,26/06/23,Gas,"Evington Centre (P6, LPT)",TOTAL GAS & POWER LTD,304297196/23,2062.68
Department of Health,Leicestershire Partnership NHS Trust,26/06/23,Gas,"Farm Lodge (P34, LPT)",TOTAL GAS & POWER LTD,304297196/23,171.78
Department of Health,Leicestershire Partnership NHS Trust,26/06/23,Gas,"Frith Cottages 3 & 4 (P36, LPT)",TOTAL GAS & POWER LTD,304297196/23,193.08
Department of Health,Leicestershire Partnership NHS Trust,26/06/23,Gas,HIS,TOTAL GAS & POWER LTD,304297196/23,188.96
Department of Health,Leicestershire Partnership NHS Trust,26/06/23,Gas,"Hawthorne Centre - Coalville (P14, LPT)",TOTAL GAS & POWER LTD,304297196/23,762.22
Department of Health,Leicestershire Partnership NHS Trust,26/06/23,Gas,"Hinckley and Bosworth Community Hospital (Sunnyside) (P133, LPT)",TOTAL GAS & POWER LTD,304297196/23,43437.65
Department of Health,Leicestershire Partnership NHS Trust,26/06/23,Gas,"Hynca Lodge (P33, LPT)",TOTAL GAS & POWER LTD,304297196/23,700.34
Department of Health,Leicestershire Partnership NHS Trust,26/06/23,Gas,"LGH - Gwendolen House (P4, LPT)",TOTAL GAS & POWER LTD,304297196/23,3504.29
Department of Health,Leicestershire Partnership NHS Trust,26/06/23,Gas,"Loughborough Hospital (P136, LPT)",TOTAL GAS & POWER LTD,304297196/23,84.63
Department of Health,Leicestershire Partnership NHS Trust,26/06/23,Gas,Mawson House (LPT),TOTAL GAS & POWER LTD,304297196/23,712.04
Department of Health,Leicestershire Partnership NHS Trust,26/06/23,Gas,"Mett Centre (P49, LPT)",TOTAL GAS & POWER LTD,304297196/23,572.94
Department of Health,Leicestershire Partnership NHS Trust,26/06/23,Gas,"Narborough Health Centre (P117, LPT)",TOTAL GAS & POWER LTD,304297196/23,870.38
Department of Health,Leicestershire Partnership NHS Trust,26/06/23,Gas,"Neville Centre - LGH (was DSC) (P147, LPT)",TOTAL GAS & POWER LTD,304297196/23,1696.99
Department of Health,Leicestershire Partnership NHS Trust,26/06/23,Gas,"OSL House (P54, LPT)",TOTAL GAS & POWER LTD,304297196/23,992.24
Department of Health,Leicestershire Partnership NHS Trust,26/06/23,Gas,"Orchard Resource Centre (P15, LPT)",TOTAL GAS & POWER LTD,304297196/23,956.06
Department of Health,Leicestershire Partnership NHS Trust,26/06/23,Gas,"Rutland Memorial Hospital (P134, LPT)",TOTAL GAS & POWER LTD,304297196/23,595.48
Department of Health,Leicestershire Partnership NHS Trust,26/06/23,Gas,"Shepshed Health Centre (P123, LPT)",TOTAL GAS & POWER LTD,304297196/23,1014.68
Department of Health,Leicestershire Partnership NHS Trust,26/06/23,Gas,"Springfield Road Health Centre (P92, LPT)",TOTAL GAS & POWER LTD,304297196/23,942.43
Department of Health,Leicestershire Partnership NHS Trust,26/06/23,Gas,"Stewart House (P61, LPT)",TOTAL GAS & POWER LTD,304297196/23,5863.61
Department of Health,Leicestershire Partnership NHS Trust,26/06/23,Gas,"Swithland House - London Road 352 (P44, LPT)",TOTAL GAS & POWER LTD,304297196/23,1552.61
Department of Health,Leicestershire Partnership NHS Trust,26/06/23,Gas,"The Agnes Unit (AKA Assessment and Treatment Centre) (P85, LPT)",TOTAL GAS & POWER LTD,304297196/23,7171.71
Department of Health,Leicestershire Partnership NHS Trust,26/06/23,Gas,"The Cedars (P19, LPT)",TOTAL GAS & POWER LTD,304297196/23,335.99
Department of Health,Leicestershire Partnership NHS Trust,26/06/23,Gas,"The Grange 1 (P4, LPT)",TOTAL GAS & POWER LTD,304297196/23,389.48
Department of Health,Leicestershire Partnership NHS Trust,26/06/23,Gas,"The Grange 2 (P41, LPT)",TOTAL GAS & POWER LTD,304297196/23,216.27
Department of Health,Leicestershire Partnership NHS Trust,26/06/23,Gas,"The Willows - Cordelia Close (P22, LPT)",TOTAL GAS & POWER LTD,304297196/23,6403.62
Department of Health,Leicestershire Partnership NHS Trust,26/06/23,Gas,"Valentine Centre (P3, LPT)",TOTAL GAS & POWER LTD,304297196/23,3193.37
Department of Health,Leicestershire Partnership NHS Trust,26/06/23,Gas,"Westcotes Group -Westcotes House (P78, LPT)",TOTAL GAS & POWER LTD,304297196/23,1763.54
Department of Health,Leicestershire Partnership NHS Trust,26/06/23,Gas,"Winstanley Drive Health Centre (P8, LPT)",TOTAL GAS & POWER LTD,304297196/23,840.92
Department of Health,Leicestershire Partnership NHS Trust,26/06/23,Nurse - Band 6 -Agency,AMH - Central Access Point,HCL WORKFORCE SOLUTIONS,HWSCM001588,-8958.18
Department of Health,Leicestershire Partnership NHS Trust,26/06/23,Nurse - Band 6 -Agency,Adult City East CMHT,HCL WORKFORCE SOLUTIONS,HWSCM001588,-2444.38
Department of Health,Leicestershire Partnership NHS Trust,26/06/23,Nurse - Band 6 -Agency,CAMHS HUB / CAP,HCL WORKFORCE SOLUTIONS,HWSCM001588,-15245.55
Department of Health,Leicestershire Partnership NHS Trust,26/06/23,Nurse - Band 6 -Agency,CAMHS Waiting List Monies,HCL WORKFORCE SOLUTIONS,HWSCM001588,-27752.18
Department of Health,Leicestershire Partnership NHS Trust,26/06/23,Nurse - Band 6 -Agency,City East CMHT MHSOP,HCL WORKFORCE SOLUTIONS,HWSCM001588,-1334.63
Department of Health,Leicestershire Partnership NHS Trust,26/06/23,Nurse - Band 6 -Agency,Crisis Resolution,HCL WORKFORCE SOLUTIONS,HWSCM001588,-7917.83
Department of Health,Leicestershire Partnership NHS Trust,26/06/23,Nurse - Band 6 -Agency,Crisis Response and Home Treatment,HCL WORKFORCE SOLUTIONS,HWSCM001588,-3975.22
Department of Health,Leicestershire Partnership NHS Trust,26/06/23,Nurse - Band 6 -Agency,Melton & Rutland CMHT MHSOP,HCL WORKFORCE SOLUTIONS,HWSCM001588,-2670.78
Department of Health,Leicestershire Partnership NHS Trust,26/06/23,Nurse - Band 6 -Agency,West Leicestershire CMHT MHSOP,HCL WORKFORCE SOLUTIONS,HWSCM001588,-3275.70
Department of Health,Leicestershire Partnership NHS Trust,26/06/23,Nurse - Band 6 -Agency,AMH - Central Access Point,HCL NURSING,HNSI0001338,271089.34
Department of Health,Leicestershire Partnership NHS Trust,26/06/23,NURSE - BAND 5 - AGENCY,AMH - Central Access Point,HCL NURSING,HNSCM000893,-281.96
Department of Health,Leicestershire Partnership NHS Trust,26/06/23,Nurse - Band 6 -Agency,AMH - Central Access Point,HCL NURSING,HNSCM000893,-280730.10
Department of Health,Leicestershire Partnership NHS Trust,26/06/23,NURSE - BAND 2 - AGENCY,Agnes Unit,HCL NURSING,HNSCM000893,-35573.77
Department of Health,Leicestershire Partnership NHS Trust,26/06/23,NURSE - BAND 5 - AGENCY,Agnes Unit,HCL NURSING,HNSCM000893,-50690.06
Department of Health,Leicestershire Partnership NHS Trust,26/06/23,Nurse - Band 7 - Agency,Agnes Unit,HCL NURSING,HNSCM000893,-4134.74
Department of Health,Leicestershire Partnership NHS Trust,26/06/23,NURSE - BAND 2 - AGENCY,Ashby Ward (Bradgate Unit),HCL NURSING,HNSCM000893,-7334.08
Department of Health,Leicestershire Partnership NHS Trust,26/06/23,NURSE - BAND 5 - AGENCY,Ashby Ward (Bradgate Unit),HCL NURSING,HNSCM000893,-26954.60
Department of Health,Leicestershire Partnership NHS Trust,26/06/23,NURSE - BAND 2 - AGENCY,Aston Ward Bradgate Unit (Prev Welford),HCL NURSING,HNSCM000893,-7850.72
Department of Health,Leicestershire Partnership NHS Trust,26/06/23,NURSE - BAND 5 - AGENCY,Aston Ward Bradgate Unit (Prev Welford),HCL NURSING,HNSCM000893,-2503.85
Department of Health,Leicestershire Partnership NHS Trust,26/06/23,NURSE - BAND 2 - AGENCY,Beaumont Ward - Bradgate Unit,HCL NURSING,HNSCM000893,-8474.25
Department of Health,Leicestershire Partnership NHS Trust,26/06/23,NURSE - BAND 5 - AGENCY,Beaumont Ward - Bradgate Unit,HCL NURSING,HNSCM000893,-15770.28
Department of Health,Leicestershire Partnership NHS Trust,26/06/23,NURSE - BAND 2 - AGENCY,Belvoir Psychiatric Intensive Care Unit,HCL NURSING,HNSCM000893,-12659.28
Department of Health,Leicestershire Partnership NHS Trust,26/06/23,NURSE - BAND 5 - AGENCY,Belvoir Psychiatric Intensive Care Unit,HCL NURSING,HNSCM000893,-15376.90
Department of Health,Leicestershire Partnership NHS Trust,26/06/23,NURSE - BAND 2 - AGENCY,Bosworth Ward - Bradgate Unit,HCL NURSING,HNSCM000893,-2708.08
Department of Health,Leicestershire Partnership NHS Trust,26/06/23,NURSE - BAND 5 - AGENCY,Bosworth Ward - Bradgate Unit,HCL NURSING,HNSCM000893,-4576.54
Department of Health,Leicestershire Partnership NHS Trust,26/06/23,NURSE - BAND 2 - AGENCY,Bradgate Unit Site Services,HCL NURSING,HNSCM000893,-2971.30
Department of Health,Leicestershire Partnership NHS Trust,26/06/23,NURSE - BAND 5 - AGENCY,Bradgate Unit Site Services,HCL NURSING,HNSCM000893,-7713.23
Department of Health,Leicestershire Partnership NHS Trust,26/06/23,NURSE - BAND 2 - AGENCY,CAMHS Inpatient Service,HCL NURSING,HNSCM000893,-36117.60
Department of Health,Leicestershire Partnership NHS Trust,26/06/23,NURSE - BAND 5 - AGENCY,CAMHS Inpatient Service,HCL NURSING,HNSCM000893,-13226.19
Department of Health,Leicestershire Partnership NHS Trust,26/06/23,NURSE - BAND 2 - AGENCY,CAMHS Learning Disabilities and Outreach Team,HCL NURSING,HNSCM000893,-4033.43
Department of Health,Leicestershire Partnership NHS Trust,26/06/23,Nurse - Band 6 -Agency,CAMHS Waiting List Monies,HCL NURSING,HNSCM000893,-1875.41
Department of Health,Leicestershire Partnership NHS Trust,26/06/23,Nurse - Band 7 - Agency,CAMHS Waiting List Monies,HCL NURSING,HNSCM000893,-8671.51
Department of Health,Leicestershire Partnership NHS Trust,26/06/23,NURSE - BAND 2 - AGENCY,Cedar (Willows),HCL NURSING,HNSCM000893,-1207.21
Department of Health,Leicestershire Partnership NHS Trust,26/06/23,NURSE - BAND 5 - AGENCY,Cedar (Willows),HCL NURSING,HNSCM000893,-582.92
Department of Health,Leicestershire Partnership NHS Trust,26/06/23,Nurse - Band 6 -Agency,City West CMHT MHSOP,HCL NURSING,HNSCM000893,-2092.50
Department of Health,Leicestershire Partnership NHS Trust,26/06/23,NURSE - BAND 2 - AGENCY,Coleman Ward,HCL NURSING,HNSCM000893,-5183.31
Department of Health,Leicestershire Partnership NHS Trust,26/06/23,NURSE - BAND 5 - AGENCY,Coleman Ward,HCL NURSING,HNSCM000893,-4573.19
Department of Health,Leicestershire Partnership NHS Trust,26/06/23,NURSE - BAND 5 - AGENCY,Crisis Resolution,HCL NURSING,HNSCM000893,-4476.78
Department of Health,Leicestershire Partnership NHS Trust,26/06/23,NURSE - BAND 2 - AGENCY,Griffin Ward (HPC),HCL NURSING,HNSCM000893,-9074.12
Department of Health,Leicestershire Partnership NHS Trust,26/06/23,NURSE - BAND 5 - AGENCY,Griffin Ward (HPC),HCL NURSING,HNSCM000893,-9250.42
Department of Health,Leicestershire Partnership NHS Trust,26/06/23,NURSE - BAND 2 - AGENCY,Gwendolen Ward,HCL NURSING,HNSCM000893,-3117.29
Department of Health,Leicestershire Partnership NHS Trust,26/06/23,NURSE - BAND 5 - AGENCY,Gwendolen Ward,HCL NURSING,HNSCM000893,-4899.46
Department of Health,Leicestershire Partnership NHS Trust,26/06/23,NURSE - BAND 2 - AGENCY,Heather Ward,HCL NURSING,HNSCM000893,-5173.55
Department of Health,Leicestershire Partnership NHS Trust,26/06/23,NURSE - BAND 5 - AGENCY,Heather Ward,HCL NURSING,HNSCM000893,-7059.29
Department of Health,Leicestershire Partnership NHS Trust,26/06/23,NURSE - BAND 2 - AGENCY,Kirby Ward,HCL NURSING,HNSCM000893,-17343.70
Department of Health,Leicestershire Partnership NHS Trust,26/06/23,NURSE - BAND 5 - AGENCY,Kirby Ward,HCL NURSING,HNSCM000893,-3339.42
Department of Health,Leicestershire Partnership NHS Trust,26/06/23,NURSE - BAND 2 - AGENCY,Maple Ward,HCL NURSING,HNSCM000893,-1916.22
Department of Health,Leicestershire Partnership NHS Trust,26/06/23,NURSE - BAND 5 - AGENCY,Maple Ward,HCL NURSING,HNSCM000893,-1403.24
Department of Health,Leicestershire Partnership NHS Trust,26/06/23,NURSE - BAND 2 - AGENCY,Mill Lodge,HCL NURSING,HNSCM000893,-7849.73
Department of Health,Leicestershire Partnership NHS Trust,26/06/23,NURSE - BAND 5 - AGENCY,Mill Lodge,HCL NURSING,HNSCM000893,-1522.69
Department of Health,Leicestershire Partnership NHS Trust,26/06/23,NURSE - BAND 2 - AGENCY,Phoenix Ward (HPC),HCL NURSING,HNSCM000893,-4094.21
Department of Health,Leicestershire Partnership NHS Trust,26/06/23,NURSE - BAND 5 - AGENCY,Phoenix Ward (HPC),HCL NURSING,HNSCM000893,-9452.58
Department of Health,Leicestershire Partnership NHS Trust,26/06/23,NURSE - BAND 5 - AGENCY,Stewart House,HCL NURSING,HNSCM000893,-1881.19
Department of Health,Leicestershire Partnership NHS Trust,26/06/23,NURSE - BAND 2 - AGENCY,Sycamore (Willows),HCL NURSING,HNSCM000893,-2899.49
Department of Health,Leicestershire Partnership NHS Trust,26/06/23,NURSE - BAND 2 - AGENCY,Thornton Ward - Bradgate Unit,HCL NURSING,HNSCM000893,-2211.29
Department of Health,Leicestershire Partnership NHS Trust,26/06/23,NURSE - BAND 2 - AGENCY,Watermead Ward (Bradgate Unit),HCL NURSING,HNSCM000893,-2611.25
Department of Health,Leicestershire Partnership NHS Trust,26/06/23,NURSE - BAND 5 - AGENCY,Watermead Ward (Bradgate Unit),HCL NURSING,HNSCM000893,-21351.04
Department of Health,Leicestershire Partnership NHS Trust,26/06/23,NURSE - BAND 2 - AGENCY,Welford Ward (Prev Langley),HCL NURSING,HNSCM000893,-2890.58
Department of Health,Leicestershire Partnership NHS Trust,26/06/23,NURSE - BAND 5 - AGENCY,Welford Ward (Prev Langley),HCL NURSING,HNSCM000893,-8964.56
Department of Health,Leicestershire Partnership NHS Trust,26/06/23,Nurse - Band 6 -Agency,AMH - Central Access Point,HCL NURSING,HNSI0001383,2311.44
Department of Health,Leicestershire Partnership NHS Trust,26/06/23,Nurse - Band 7 - Agency,Adult County- East Leicester CMHT,HCL NURSING,HNSI0001383,1905.31
Department of Health,Leicestershire Partnership NHS Trust,26/06/23,NURSE - BAND 2 - AGENCY,Agnes Unit,HCL NURSING,HNSI0001383,20766.61
Department of Health,Leicestershire Partnership NHS Trust,26/06/23,NURSE - BAND 5 - AGENCY,Agnes Unit,HCL NURSING,HNSI0001383,23123.43
Department of Health,Leicestershire Partnership NHS Trust,26/06/23,Nurse - Band 7 - Agency,Agnes Unit,HCL NURSING,HNSI0001383,1573.84
Department of Health,Leicestershire Partnership NHS Trust,26/06/23,NURSE - BAND 2 - AGENCY,Ashby Ward (Bradgate Unit),HCL NURSING,HNSI0001383,1697.96
Department of Health,Leicestershire Partnership NHS Trust,26/06/23,NURSE - BAND 5 - AGENCY,Ashby Ward (Bradgate Unit),HCL NURSING,HNSI0001383,9109.06
Department of Health,Leicestershire Partnership NHS Trust,26/06/23,NURSE - BAND 2 - AGENCY,Aston Ward Bradgate Unit (Prev Welford),HCL NURSING,HNSI0001383,1371.65
Department of Health,Leicestershire Partnership NHS Trust,26/06/23,NURSE - BAND 5 - AGENCY,Aston Ward Bradgate Unit (Prev Welford),HCL NURSING,HNSI0001383,1803.52
Department of Health,Leicestershire Partnership NHS Trust,26/06/23,NURSE - BAND 2 - AGENCY,Beaumont Ward - Bradgate Unit,HCL NURSING,HNSI0001383,5294.77
Department of Health,Leicestershire Partnership NHS Trust,26/06/23,NURSE - BAND 5 - AGENCY,Beaumont Ward - Bradgate Unit,HCL NURSING,HNSI0001383,5581.07
Department of Health,Leicestershire Partnership NHS Trust,26/06/23,NURSE - BAND 2 - AGENCY,Belvoir Psychiatric Intensive Care Unit,HCL NURSING,HNSI0001383,7335.38
Department of Health,Leicestershire Partnership NHS Trust,26/06/23,NURSE - BAND 5 - AGENCY,Belvoir Psychiatric Intensive Care Unit,HCL NURSING,HNSI0001383,6345.42
Department of Health,Leicestershire Partnership NHS Trust,26/06/23,NURSE - BAND 2 - AGENCY,Bosworth Ward - Bradgate Unit,HCL NURSING,HNSI0001383,651.69
Department of Health,Leicestershire Partnership NHS Trust,26/06/23,NURSE - BAND 5 - AGENCY,Bosworth Ward - Bradgate Unit,HCL NURSING,HNSI0001383,2498.51
Department of Health,Leicestershire Partnership NHS Trust,26/06/23,NURSE - BAND 2 - AGENCY,Cedar (Willows),HCL NURSING,HNSI0001383,242.61
Department of Health,Leicestershire Partnership NHS Trust,26/06/23,NURSE - BAND 2 - AGENCY,Coleman Ward,HCL NURSING,HNSI0001383,3137.01
Department of Health,Leicestershire Partnership NHS Trust,26/06/23,NURSE - BAND 5 - AGENCY,Coleman Ward,HCL NURSING,HNSI0001383,3924.75
Department of Health,Leicestershire Partnership NHS Trust,26/06/23,NURSE - BAND 5 - AGENCY,Crisis Resolution,HCL NURSING,HNSI0001383,1389.40
Department of Health,Leicestershire Partnership NHS Trust,26/06/23,NURSE - BAND 2 - AGENCY,Griffin Ward (HPC),HCL NURSING,HNSI0001383,5082.49
Department of Health,Leicestershire Partnership NHS Trust,26/06/23,NURSE - BAND 5 - AGENCY,Griffin Ward (HPC),HCL NURSING,HNSI0001383,5108.58
Department of Health,Leicestershire Partnership NHS Trust,26/06/23,NURSE - BAND 2 - AGENCY,Gwendolen Ward,HCL NURSING,HNSI0001383,2014.58
Department of Health,Leicestershire Partnership NHS Trust,26/06/23,NURSE - BAND 5 - AGENCY,Gwendolen Ward,HCL NURSING,HNSI0001383,437.47
Department of Health,Leicestershire Partnership NHS Trust,26/06/23,NURSE - BAND 2 - AGENCY,Heather Ward,HCL NURSING,HNSI0001383,3051.64
Department of Health,Leicestershire Partnership NHS Trust,26/06/23,NURSE - BAND 5 - AGENCY,Heather Ward,HCL NURSING,HNSI0001383,5141.87
Department of Health,Leicestershire Partnership NHS Trust,26/06/23,NURSE - BAND 2 - AGENCY,Kirby Ward,HCL NURSING,HNSI0001383,5106.29
Department of Health,Leicestershire Partnership NHS Trust,26/06/23,Nurse - Band 6 -Agency,Mental Health Liaison Team,HCL NURSING,HNSI0001383,936.24
Department of Health,Leicestershire Partnership NHS Trust,26/06/23,NURSE - BAND 2 - AGENCY,Mill Lodge,HCL NURSING,HNSI0001383,1045.77
Department of Health,Leicestershire Partnership NHS Trust,26/06/23,NURSE - BAND 5 - AGENCY,Mill Lodge,HCL NURSING,HNSI0001383,5634.39
Department of Health,Leicestershire Partnership NHS Trust,26/06/23,NURSE - BAND 2 - AGENCY,Phoenix Ward (HPC),HCL NURSING,HNSI0001383,915.74
Department of Health,Leicestershire Partnership NHS Trust,26/06/23,NURSE - BAND 5 - AGENCY,Phoenix Ward (HPC),HCL NURSING,HNSI0001383,2955.61
Department of Health,Leicestershire Partnership NHS Trust,26/06/23,NURSE - BAND 2 - AGENCY,Place Of Safety Assessment Unit,HCL NURSING,HNSI0001383,352.34
Department of Health,Leicestershire Partnership NHS Trust,26/06/23,NURSE - BAND 5 - AGENCY,Place Of Safety Assessment Unit,HCL NURSING,HNSI0001383,4785.78
Department of Health,Leicestershire Partnership NHS Trust,26/06/23,NURSE - BAND 2 - AGENCY,Stewart House,HCL NURSING,HNSI0001383,350.74
Department of Health,Leicestershire Partnership NHS Trust,26/06/23,NURSE - BAND 5 - AGENCY,Stewart House,HCL NURSING,HNSI0001383,428.11
Department of Health,Leicestershire Partnership NHS Trust,26/06/23,NURSE - BAND 2 - AGENCY,Sycamore (Willows),HCL NURSING,HNSI0001383,704.20
Department of Health,Leicestershire Partnership NHS Trust,26/06/23,NURSE - BAND 5 - AGENCY,Sycamore (Willows),HCL NURSING,HNSI0001383,602.74
Department of Health,Leicestershire Partnership NHS Trust,26/06/23,NURSE - BAND 2 - AGENCY,The Grange,HCL NURSING,HNSI0001383,211.20
Department of Health,Leicestershire Partnership NHS Trust,26/06/23,NURSE - BAND 5 - AGENCY,Thornton Ward - Bradgate Unit,HCL NURSING,HNSI0001383,2739.75
Department of Health,Leicestershire Partnership NHS Trust,26/06/23,NURSE - BAND 2 - AGENCY,CAMHS ED Team,HCL NURSING,HNSI0001385,2707.85
Department of Health,Leicestershire Partnership NHS Trust,26/06/23,NURSE - BAND 2 - AGENCY,CAMHS Inpatient Service,HCL NURSING,HNSI0001385,15810.53
Department of Health,Leicestershire Partnership NHS Trust,26/06/23,NURSE - BAND 5 - AGENCY,CAMHS Inpatient Service,HCL NURSING,HNSI0001385,4148.49
Department of Health,Leicestershire Partnership NHS Trust,26/06/23,NURSE - BAND 2 - AGENCY,CAMHS Outpatients,HCL NURSING,HNSI0001385,330.79
Department of Health,Leicestershire Partnership NHS Trust,26/06/23,Nurse - Band 7 - Agency,CAMHS Waiting List Monies,HCL NURSING,HNSI0001385,2447.51
Department of Health,Leicestershire Partnership NHS Trust,26/06/23,Nurse - Band 7 - Agency,Crisis Response and Home Treatment,HCL NURSING,HNSI0001385,2556.90
Department of Health,Leicestershire Partnership NHS Trust,26/06/23,NURSE - BAND 2 - AGENCY,Welford Ward (Prev Langley),HCL NURSING,HNSI0001385,666.80
Department of Health,Leicestershire Partnership NHS Trust,26/06/23,NURSE - BAND 5 - AGENCY,Welford Ward (Prev Langley),HCL NURSING,HNSI0001385,2607.59
Department of Health,Leicestershire Partnership NHS Trust,26/06/23,Nurse - Band 6 -Agency,CAMHS Waiting List Monies,HCL WORKFORCE SOLUTIONS,HWSI0001803,17137.91
Department of Health,Leicestershire Partnership NHS Trust,26/06/23,Nurse - Band 6 -Agency,Crisis Response and Home Treatment,HCL WORKFORCE SOLUTIONS,HWSI0001803,11087.66
Department of Health,Leicestershire Partnership NHS Trust,27/06/23,Landline Telephone Rental / Calls,"Beaumont Leys Health Centre (P94, LPT)",VIRGIN MEDIA BUSINESS,853083001/004/0623,345.95
Department of Health,Leicestershire Partnership NHS Trust,27/06/23,Landline Telephone Rental / Calls,"Bennion Centre (including Forest Grange Day Unit) (P8, LPT)",VIRGIN MEDIA BUSINESS,853083001/004/0623,7.74
Department of Health,Leicestershire Partnership NHS Trust,27/06/23,Landline Telephone Rental / Calls,"Bradgate Unit (including Glenvale day Unit) (P7, LPT)",VIRGIN MEDIA BUSINESS,853083001/004/0623,7207.13
Department of Health,Leicestershire Partnership NHS Trust,27/06/23,Landline Telephone Rental / Calls,Braunstone Health and Social Care Centre (Part) (PROPCO),VIRGIN MEDIA BUSINESS,853083001/004/0623,1109.09
Department of Health,Leicestershire Partnership NHS Trust,27/06/23,Landline Telephone Rental / Calls,Bridge Park Plaza - First Floor (LPT),VIRGIN MEDIA BUSINESS,853083001/004/0623,3450.07
Department of Health,Leicestershire Partnership NHS Trust,27/06/23,Landline Telephone Rental / Calls,"Coalville Community Hospital (P138, LPT)",VIRGIN MEDIA BUSINESS,853083001/004/0623,1458.65
Department of Health,Leicestershire Partnership NHS Trust,27/06/23,Landline Telephone Rental / Calls,"Coalville Health Centre (P121, LPT)",VIRGIN MEDIA BUSINESS,853083001/004/0623,120.16
Department of Health,Leicestershire Partnership NHS Trust,27/06/23,Landline Telephone Rental / Calls,County Hall,VIRGIN MEDIA BUSINESS,853083001/004/0623,1511.76
Department of Health,Leicestershire Partnership NHS Trust,27/06/23,Landline Telephone Rental / Calls,Estates & Facilities Central,VIRGIN MEDIA BUSINESS,853083001/004/0623,6.43
Department of Health,Leicestershire Partnership NHS Trust,27/06/23,Landline Telephone Rental / Calls,"Evington Centre (P6, LPT)",VIRGIN MEDIA BUSINESS,853083001/004/0623,204.06
Department of Health,Leicestershire Partnership NHS Trust,27/06/23,Landline Telephone Rental / Calls,HIS,VIRGIN MEDIA BUSINESS,853083001/004/0623,3183.66
Department of Health,Leicestershire Partnership NHS Trust,27/06/23,Landline Telephone Rental / Calls,"Hawthorne Centre - Coalville (P14, LPT)",VIRGIN MEDIA BUSINESS,853083001/004/0623,463.93
Department of Health,Leicestershire Partnership NHS Trust,27/06/23,Landline Telephone Rental / Calls,"Hinckley and Bosworth Community Hospital (Sunnyside) (P133, LPT)",VIRGIN MEDIA BUSINESS,853083001/004/0623,941.65
Department of Health,Leicestershire Partnership NHS Trust,27/06/23,Landline Telephone Rental / Calls,"Hynca Lodge (P33, LPT)",VIRGIN MEDIA BUSINESS,853083001/004/0623,382.90
Department of Health,Leicestershire Partnership NHS Trust,27/06/23,Landline Telephone Rental / Calls,"Legion House, Ashby",VIRGIN MEDIA BUSINESS,853083001/004/0623,25.01
Department of Health,Leicestershire Partnership NHS Trust,27/06/23,Landline Telephone Rental / Calls,"Loughborough Hospital (P136, LPT)",VIRGIN MEDIA BUSINESS,853083001/004/0623,4420.14
Department of Health,Leicestershire Partnership NHS Trust,27/06/23,Landline Telephone Rental / Calls,Mawson House (LPT),VIRGIN MEDIA BUSINESS,853083001/004/0623,435.76
Department of Health,Leicestershire Partnership NHS Trust,27/06/23,Landline Telephone Rental / Calls,Merlyn Vaz Centre (CHP),VIRGIN MEDIA BUSINESS,853083001/004/0623,1370.77
Department of Health,Leicestershire Partnership NHS Trust,27/06/23,Landline Telephone Rental / Calls,"Mett Centre (P49, LPT)",VIRGIN MEDIA BUSINESS,853083001/004/0623,106.18
Department of Health,Leicestershire Partnership NHS Trust,27/06/23,Landline Telephone Rental / Calls,NSPCC Training Cente,VIRGIN MEDIA BUSINESS,853083001/004/0623,159.60
Department of Health,Leicestershire Partnership NHS Trust,27/06/23,Landline Telephone Rental / Calls,New Parks Health Centre (PROPCO),VIRGIN MEDIA BUSINESS,853083001/004/0623,1349.38
Department of Health,Leicestershire Partnership NHS Trust,27/06/23,Landline Telephone Rental / Calls,"OSL House (P54, LPT)",VIRGIN MEDIA BUSINESS,853083001/004/0623,913.94
Department of Health,Leicestershire Partnership NHS Trust,27/06/23,Landline Telephone Rental / Calls,"Orchard Resource Centre (P15, LPT)",VIRGIN MEDIA BUSINESS,853083001/004/0623,532.81
Department of Health,Leicestershire Partnership NHS Trust,27/06/23,Landline Telephone Rental / Calls,Pasley Road Health Centre (PROPCO),VIRGIN MEDIA BUSINESS,853083001/004/0623,142.57
Department of Health,Leicestershire Partnership NHS Trust,27/06/23,Landline Telephone Rental / Calls,"Prince Philip House (P96, LPT)",VIRGIN MEDIA BUSINESS,853083001/004/0623,1189.51
Department of Health,Leicestershire Partnership NHS Trust,27/06/23,Landline Telephone Rental / Calls,Rushey Mead Health Centre (PROPCO),VIRGIN MEDIA BUSINESS,853083001/004/0623,69.61
Department of Health,Leicestershire Partnership NHS Trust,27/06/23,Landline Telephone Rental / Calls,"Springfield Road Health Centre (P92, LPT)",VIRGIN MEDIA BUSINESS,853083001/004/0623,360.85
Department of Health,Leicestershire Partnership NHS Trust,27/06/23,Landline Telephone Rental / Calls,"St Peters Health Center (Part 1st and 2nd floors) (P66, LPT)",VIRGIN MEDIA BUSINESS,853083001/004/0623,1679.50
Department of Health,Leicestershire Partnership NHS Trust,27/06/23,Landline Telephone Rental / Calls,"Swithland House - London Road 352 (P44, LPT)",VIRGIN MEDIA BUSINESS,853083001/004/0623,267.26
Department of Health,Leicestershire Partnership NHS Trust,27/06/23,Landline Telephone Rental / Calls,"The Cedars (P19, LPT)",VIRGIN MEDIA BUSINESS,853083001/004/0623,678.08
Department of Health,Leicestershire Partnership NHS Trust,27/06/23,Landline Telephone Rental / Calls,"The Willows - Cordelia Close (P22, LPT)",VIRGIN MEDIA BUSINESS,853083001/004/0623,486.98
Department of Health,Leicestershire Partnership NHS Trust,27/06/23,Landline Telephone Rental / Calls,"Valentine Centre (P3, LPT)",VIRGIN MEDIA BUSINESS,853083001/004/0623,585.74
Department of Health,Leicestershire Partnership NHS Trust,27/06/23,Landline Telephone Rental / Calls,Warren Park Way 25 (PROPCO),VIRGIN MEDIA BUSINESS,853083001/004/0623,752.82
Department of Health,Leicestershire Partnership NHS Trust,27/06/23,Landline Telephone Rental / Calls,"Westcotes Group -Westcotes House (P78, LPT)",VIRGIN MEDIA BUSINESS,853083001/004/0623,823.74
Department of Health,Leicestershire Partnership NHS Trust,27/06/23,Landline Telephone Rental / Calls,"Winstanley Drive Health Centre (P8, LPT)",VIRGIN MEDIA BUSINESS,853083001/004/0623,46.44
Department of Health,Leicestershire Partnership NHS Trust,28/06/23,Services / Recharges from NHS Trusts,Inter Unit I & E Distribution,UHL NHS TRUST (RWE),L0271738,43193.46
Department of Health,Leicestershire Partnership NHS Trust,28/06/23,WIP Project Not in BS - Buildings excl Dwellings,Work in Progress,TILBURY DOUGLAS CONSTRUCTION LTD,23060237,464580.25
Department of Health,Leicestershire Partnership NHS Trust,29/06/23,CHP Estates Management,Merlyn Vaz Centre (CHP),COMM HLTH PARTNERSHIPS LTD,0060300243,86705.26
